Workbook

Sheet EN_PL

Sheet Intro
B3: Uwaga: | J3: Please note:
B5: W niniejszym pliku zaprezentowane są dane finansowe Grupy Asseco za kwartały lat 2019 i 2018. | J5: This workbook contains financial information of the Asseco Group for the quarters of the years 2018 and 2017.
B6: Objaśnienia:
B8: Arkusze oznaczone kolorem niebieskim zawierają P&L, Bilans i Rachunek przepływów pieniężnych (w tym Rachunek przepływów pieniężnych za okres ostatnich 12 miesięcy). Arkusze oznaczone kolorem zielonym zawierają P&L, Bilans i Rachunek przepływów pieniężnych bez uwzględnienia wpływu wdrożenia MSSF 16. W arkuszu Segments, znajdują się informacje dotyczące segmentów operacyjnych grupy. Arkusz RevenuesAndCosts zawiera dane uszczegóławiające do pozycji przychodów i kosztów operacyjnych. Kursy walut funkcjonalnych zagranicznych jednostek zależnych obowiązujące na dni bilansowe oraz kursy średnie stosowane w latach 2015-2019 zamieszczone są w arkuszu Exchange rates. | J8: The sheets marked with blue colour contain P&L, statement of financial position and the statement of cash flow of the Asseco Group. The Segments sheet contains data on the groups' operating segments. The RevenuesAndCosts sheet presents details for the items of revenues and operating costs. The exchange rates of the foreign subsidiaries' functional currencies as at the balance sheet date and the average exchange rates used in years 2015-2018 are presented in the Exchange Rates sheet.

Sheet PL
A1: P&L (Grupa Asseco) | B1: P&L (Asseco Group) | C1: Q4 2019 | D1: Q3 2019 | E1: Q2 2019 | F1: Q1 2019 | G1: Q4 2018 | H1: Q3 2018 | I1: Q2 2018 | J1: Q1 2018
C4: mln PLN | D4: mln PLN | E4: mln PLN | F4: mln PLN | G4: mln PLN | H4: mln PLN | I4: mln PLN | J4: mln PLN
A6: Działalność kontynuowana | B6: Continuing operations
A7: Przychody ze sprzedaży | B7: Sales revenues | C7: 2938.1 | D7: 2738.4 | E7: 2538.7 | F7: 2452.2 | G7: 2650.3 | H7: 2218.4 | I7: 2310.9 | J7: 2149
A9: Koszt własny sprzedaży (-) | B9: Cost of sales | C9: -2308.9 | D9: -2144.8 | E9: -1989.3 | F9: -1923.4 | G9: -2081.6 | H9: -1748.3 | I9: -1797.8 | J9: -1711.7
A11: Zysk brutto ze sprzedaży | B11: Gross profit on sales | C11: =SUM(C7:C9) -> 629.2 | D11: 593.6 | E11: 549.4 | F11: 528.8 | G11: 568.7 | H11: 470.1 | I11: 513.1 | J11: 437.3
A13: Koszty sprzedaży (-) | B13: Selling costs | C13: -158 | D13: -147.3 | E13: -132.8 | F13: -130.2 | G13: -134.5 | H13: -120.3 | I13: -130.7 | J13: -118.4
A14: Koszty ogólnego zarządu (-) | B14: General administrative expenses | C14: -206.4 | D14: -184.7 | E14: -185.2 | F14: -168.9 | G14: -189.9 | H14: -161.8 | I14: -176.6 | J14: -147.8
A16: Zysk netto ze sprzedaży | B16: Net profit on sales | C16: =SUM(C11,C13:C14) -> 264.8 | D16: =SUM(D11,D13:D14) -> 261.6 | E16: =SUM(E11,E13:E14) -> 231.4 | F16: =SUM(F11,F13:F14) -> 229.7 | G16: =SUM(G11,G13:G14) -> 244.3 | H16: =SUM(H11,H13:H14) -> 188 | I16: 205.8 | J16: 171.1
A18: Pozostałe przychody operacyjne* | B18: Other operating income* | C18: 10.8 | D18: 11.3 | E18: 7.1 | F18: 11.9 | G18: 5.4 | H18: 16.6 | I18: 8.1 | J18: 8.6
A19: Pozostałe koszty operacyjne (-)* | B19: Other operating expenses* | C19: -14.1 | D19: -11.8 | E19: -9.6 | F19: -16.9 | G19: -11.6 | H19: -17 | I19: -10.1 | J19: -12.4
A21: Zysk z działalności operacyjnej | B21: Operating profit | C21: =SUM(C16:C19) -> 261.5 | D21: 261.1 | E21: 228.9 | F21: 224.7 | G21: 238.1 | H21: 187.6 | I21: 203.8 | J21: 167.3
A23: Działalność finansowa | B23: Financial activity | C23: -22.5 | D23: -30 | E23: -11 | F23: -24.6 | G23: -0.6 | H23: -9.6 | I23: -6.5 | J23: -6.1
A25: Zysk przed opodatkowaniem i udziałem w wynikach jednostek stowarzyszonych | B25: Pre-tax profit and share in profits of associates | C25: =SUM(C20:C23) -> 239 | D25: 231.1 | E25: 217.9 | F25: 200.1 | G25: 237.5 | H25: 178 | I25: 197.3 | J25: 161.2
A27: Podatek dochodowy | B27: Corporate income tax | C27: -48.2 | D27: -50.8 | E27: -48.2 | F27: -43.8 | G27: -56.9 | H27: -37 | I27: -45.2 | J27: -43.2
A28: Udział w wynikach jednostek stowarzyszonych | B28: Share in profits of associates | C28: 4.5 | D28: 1.2 | E28: -0.3 | F28: 0.9 | G28: 3.8 | H28: 0.3 | I28: -0.7 | J28: -1.4
A30: Zysk z działalności kontynuowanej za okres sprawozdawczy | B30: Net profit for the period from continuing operations | C30: =SUM(C25,C27:C28) -> 195.3 | D30: 181.5 | E30: 169.4 | F30: 157.2 | G30: 184.4 | H30: 141.3 | I30: 151.4 | J30: 116.6
A32: Działalność zaniechana | B32: Discontinued operations
A33: Zysk z działalności zaniechanej za okres sprawozdawczy | B33: Net profit for the period from discontinued operations | C33: 0 | D33: 0 | E33: 0 | F33: 0 | G33: 0 | H33: 0 | I33: 0 | J33: 0
A35: Zysk za okres sprawozdawczy | B35: Net profit for the reporting period | C35: =C30+C33 -> 195.3 | D35: 181.5 | E35: =E30+E33 -> 169.4 | F35: =F30+F33 -> 157.2 | G35: =G30+G33 -> 184.4 | H35: =H30+H33 -> 141.3 | I35: =I30+I33 -> 151.4 | J35: 116.6
A36: Przypadający: | B36: Attributable to:
A37: Akcjonariuszom Jednostki Dominującej | B37: Shareholders of the Parent Company | C37: =C35-C38 -> 84.2 | D37: 78.5 | E37: 80.1 | F37: 79.6 | G37: 98 | H37: 78 | I37: =I35-I38 -> 88.4 | J37: 68.9
A38: Udziałowcom niekontrolującym | B38: Non-controling interests | C38: 111.1 | D38: 103 | E38: 89.3 | F38: 77.6 | G38: 86.4 | H38: 63.3 | I38: 63 | J38: 47.7
A40: *W ramach pozostałej działalności operacyjnej dokonano spersaldowania wyniku (przychodów i kosztów) na sprzedaży środków trwałych, wartości niematerialnych oraz aktywów z tytułu prawa do użytkowania | B40: * As part of other operating activities, the result (income and expenses) on the sale of property, plant and equipment, intangible assets and assets due to the right of use was offset.

Sheet BS
A1: Bilans (Grupa Asseco) | B1: Statement of financial position (Asseco Group) | C1: Q4 2019 | D1: Q3 2019 | E1: Q2 2019 | F1: Q1 2019 | G1: Q4 2018 | H1: Q3 2018 | I1: Q2 2018 | J1: Q1 2018
C4: mln PLN | D4: mln PLN | E4: mln PLN | F4: mln PLN | G4: mln PLN | H4: mln PLN | I4: mln PLN | J4: mln PLN
A7: Aktywa trwałe | B7: Non-current assets
A8: Rzeczowe aktywa trwałe | B8: Property, plant and equipment | C8: 822.7 | D8: 825.9 | E8: 773.8 | F8: 767.3 | G8: 828.4 | H8: 838.4 | I8: 851.2 | J8: 832.3
A9: Wartości niematerialne | B9: Intangible assets | C9: 2095.5 | D9: 2165.4 | E9: 2018.3 | F9: 2072.3 | G9: 1991 | H9: 2036.9 | I9: 2112.1 | J9: 2031.4
A10: Aktywa z tytułu prawa do użytkowania | B10: Right-to-use assets | C10: 686.6 | D10: 738.7 | E10: 716.1 | F10: 655.3 | G10: 0 | H10: 0 | I10: 0 | J10: 0
A11: Nieruchomości inwestycyjne | B11: Investment property | C11: 20.6 | D11: 20.7 | E11: 24.2 | F11: 23.4 | G11: 21 | H11: 20.1 | I11: 20.1 | J11: 19.8
A12: Wartość firmy | B12: Goodwill | C12: 4576.1 | D12: 4626.4 | E12: 4411.4 | F12: 4416.4 | G12: 4254 | H12: 4197.4 | I12: 4204.7 | J12: 4024.4
A13: Inwestycje wyceniane metodą praw własności | B13: Investments valued using equity method | C13: 145 | D13: 139.6 | E13: 131 | F13: 133 | G13: 111.5 | H13: 102.9 | I13: 105 | J13: 97.6
A14: Należności długoterminowe | B14: Long-term receivables | C14: 110.3 | D14: 123.7 | E14: 107.5 | F14: 117.6 | G14: 127.5 | H14: 119.9 | I14: 118.9 | J14: 106.8
A15: Aktywa z tytułu odroczonego pod. doch. | B15: Deferred income tax assets | C15: 177.7 | D15: 102.3 | E15: 93.4 | F15: 92 | G15: 84.8 | H15: 76.4 | I15: 85.5 | J15: 77.9
A16: Inne aktywa niefinansowe | B16: Other non-financial assets | C16: 0.5 | D16: 0 | E16: 0 | F16: 0 | G16: 0.1 | H16: 0 | I16: 0.2 | J16: 0.1
A17: Pozostałe długoterminowe aktywa finansowe | B17: Long-term financial assets | C17: 142.2 | D17: 152.9 | E17: 150.9 | F17: 162.6 | G17: 175.1 | H17: 153.8 | I17: 176.8 | J17: 169.5
A18: Długoterminowe rozliczenia międzyokresowe | B18: Long-term prepayments and accrued income | C18: 68.4 | D18: 73.9 | E18: 64.1 | F18: 58.6 | G18: 59.2 | H18: 50.9 | I18: 53.4 | J18: 51.9
C19: =SUM(C8:C18) -> 8845.6 | D19: 8969.5 | E19: 8490.7 | F19: 8498.5 | G19: 7652.6 | H19: 7596.7 | I19: 7727.9 | J19: 7411.7
A20: Aktywa obrotowe | B20: Current assets
A21: Zapasy | B21: Inventories | C21: 122.6 | D21: 124.1 | E21: 111.2 | F21: 99.3 | G21: 94.3 | H21: 93.8 | I21: 76.9 | J21: 81.2
A22: Rozliczenia międzyokresowe | B22: Prepayments and accrued income | C22: 242.9 | D22: 254.6 | E22: 237 | F22: 232.2 | G22: 168.5 | H22: 172.7 | I22: 182 | J22: 179.4
A23: Należności z tytułu dostaw i usług | B23: Trade receivables | C23: 2632.4 | D23: 2553.1 | E23: 2448.1 | F23: 2348.7 | G23: 2432.7 | H23: 2183.5 | I23: 2116.3 | J23: 2211.7
A24: Aktywa z tytułu umów z klientami | B24: Contract assets | C24: 212.6 | D24: 286.4 | E24: 254.9 | F24: 279.7 | G24: 214.3 | H24: 262.9 | I24: 270.1 | J24: 0
A25: Należności z tytułu podatku CIT | B25: Corporate income tax receivable | C25: 71.5 | D25: 66.3 | E25: 69.4 | F25: 58.8 | G25: 47.6 | H25: 56.6 | I25: 57 | J25: 77.1
A26: Należności budżetowe | B26: Receivables from the state and local budgets | C26: 34.5 | D26: 35.4 | E26: 34.9 | F26: 34.6 | G26: 37.3 | H26: 32.8 | I26: 29.2 | J26: 25.6
A27: Pozostałe należności | B27: Other receivables | C27: 73.4 | D27: 68.1 | E27: 49.1 | F27: 367.8 | G27: 39.1 | H27: 48.9 | I27: 45.1 | J27: 43.9
A28: Inne aktywa niefinansowe | B28: Other non-financial receivables | C28: 12.8 | D28: 25.5 | E28: 12.3 | F28: 8 | G28: 9 | H28: 11 | I28: 9.2 | J28: 12.3
A29: Pozostałe aktywa finansowe | B29: Financial assets | C29: 194.8 | D29: 105.2 | E29: 108.9 | F29: 108.1 | G29: 139.3 | H29: 84.8 | I29: 67.3 | J29: 83.5
A30: Środki pieniężne i depozyty krótkoterminowe | B30: Cash and short-term deposits | C30: 2153.5 | D30: 1927.4 | E30: 1867.5 | F30: 1853.6 | G30: 1800.5 | H30: 1604 | I30: 1447.4 | J30: 1546.7
A31: Aktywa długoterm. sklas. jako przezn. do sprzedaży | B31: Non-current assets classified as held for sale | C31: 1.3 | D31: 1.5 | E31: 3.6 | F31: 8.4 | G31: 10.9 | H31: 9.6 | I31: 7.5 | J31: 7.4
C32: =SUM(C21:C31) -> 5752.3 | D32: =SUM(D21:D31) -> 5447.6 | E32: 5196.9 | F32: 5399.2 | G32: 4993.5 | H32: 4560.6 | I32: 4308 | J32: =SUM(J21:J31) -> 4268.8
A34: SUMA AKTYWÓW | B34: TOTAL ASSETS | C34: =C32+C19 -> 14597.9 | D34: =D32+D19 -> 14417.1 | E34: 13687.6 | F34: =F32+F19 -> 13897.7 | G34: 12646.1 | H34: =H32+H19 -> 12157.3 | I34: 12035.9 | J34: =J32+J19 -> 11680.5
A36: Kapitał własny (przypisany akcjonariuszom Jednostki Dominującej) | B36: Equity (attributable to shareholders of the Parent Company) | C36: 5762.4 | D36: 5745.3 | E36: 5608.7 | F36: 5818.8 | G36: 5717.7 | H36: 5604.6 | I36: 5574.7 | J36: 5615.9
A38: Udziały niekontrolujące | B38: Non-controlling interests | C38: 2218.6 | D38: 2211.1 | E38: 2054 | F38: 2081.6 | G38: 1944.6 | H38: 1867.8 | I38: 1784.8 | J38: 1660.6
A40: Kapitał własny ogółem | B40: Total equity | C40: =SUM(C36:C38) -> 7981 | D40: 7956.4 | E40: 7662.7 | F40: 7900.4 | G40: 7662.3 | H40: 7472.4 | I40: 7359.5 | J40: 7276.5
A42: Zobowiązania długoterminowe | B42: Non-current liabilities
A43: Oprocentowane kred. bankowe, poż., dłużne pap. wart. | B43: Interest-bearing bank loans, borrowing and debt securities | C43: 1366.2 | D43: 1278 | E43: 1228 | F43: 1276.5 | G43: 1082.9 | H43: 889.6 | I43: 911.7 | J43: 935.9
A44: Długoterminowe zob. z tyt. leasingu finansowego | B44: Long-term finance lease liabilities | C44: 472.3 | D44: 526.2 | E44: 519.2 | F44: 478.1 | G44: 32.1 | H44: 37.4 | I44: 43.9 | J44: 45.1
A45: Długoterminowe zob. finansowe | B45: Long-term financial liabilities | C45: 246.9 | D45: 305.1 | E45: 227.4 | F45: 248.6 | G45: 180.3 | H45: 257.5 | I45: 256.4 | J45: 320.8
A46: Rezerwy z tytułu odroczonego pod. doch. | B46: Deferred income tax liabilities | C46: 474 | D46: 442.8 | E46: 415.3 | F46: 426.1 | G46: 410.7 | H46: 410.4 | I46: 424 | J46: 409.1
A47: Długoterminowe rezerwy | B47: Long-term provisions | C47: 81.9 | D47: 79.8 | E47: 75.9 | F47: 72.9 | G47: 67.9 | H47: 64.1 | I47: 66.7 | J47: 64.8
A48: Długoterminowe rozliczenia międzyok. przych. | B48: Long-term deferred income | C48: 41 | D48: 42 | E48: 43 | F48: 43.1 | G48: 43.3 | H48: 43.4 | I48: 43.4 | J48: 79.4
A49: Pozostałe zobowiązania długoterminowe | B49: Other long-term liabilities | C49: 70 | D49: 51.7 | E49: 44.8 | F49: 49.3 | G49: 46.9 | H49: 44.3 | I49: 47.2 | J49: 15.1
C50: =SUM(C43:C49) -> 2752.3 | D50: 2725.6 | E50: 2553.6 | F50: 2594.6 | G50: 1864.1 | H50: 1746.7 | I50: 1793.3 | J50: 1870.2
A51: Zobowiązania krótkoterminowe | B51: Current liabilities
A52: Oprocentowane kred. bankowe, poż., dłużne pap. wart. | B52: Interest-bearing bank loans, borrowing and debt securities | C52: 689.4 | D52: 878.3 | E52: 786.5 | F52: 691.6 | G52: 581.6 | H52: 806.2 | I52: 724.3 | J52: 561
A53: Zobowiązania z tytułu leasingu finansowego | B53: Finance lease liabilities | C53: 216.7 | D53: 224.3 | E53: 206.6 | F53: 189.8 | G53: 28.9 | H53: 28.1 | I53: 28.7 | J53: 26.8
A54: Zobowiązania finansowe | B54: Financial liabilities | C54: 264.9 | D54: 266.8 | E54: 218.7 | F54: 198 | G54: 199.3 | H54: 189.4 | I54: 187 | J54: 78.3
A55: Zobowiązania z tytułu dostaw i usług | B55: Trade payables | C55: 983.5 | D55: 801 | E55: 792.9 | F55: 839.1 | G55: 938.2 | H55: 729.8 | I55: 692.1 | J55: 683.2
A56: Zobowiązania z tytułu umów z klientami | B56: Contract liabilities | C56: 627.3 | D56: 606.1 | E56: 584.6 | F56: 603.8 | G56: 451.1 | H56: 388 | I56: 440.2 | J56: 0
A57: Zobowiązania z tytułu podatku CIT | B57: Corporate income tax payable | C57: 89.5 | D57: 70.8 | E57: 63.2 | F57: 68 | G57: 73.7 | H57: 84.7 | I57: 83.3 | J57: 69.2
A58: Zobowiązania budżetowe | B58: Liabilities to the state and local budgets | C58: 231 | D58: 168.8 | E58: 177.1 | F58: 155.1 | G58: 204.8 | H58: 133.7 | I58: 128 | J58: 120.6
A59: Pozostałe zobowiązania | B59: Other liabilities | C59: 372.8 | D59: 338.1 | E59: 309.9 | F59: 340.9 | G59: 314.3 | H59: 267.7 | I59: 282.3 | J59: 279.4
A60: Rezerwy | B60: Provisions | C60: 39.2 | D60: 42.9 | E60: 35.7 | F60: 41.2 | G60: 45.4 | H60: 35.7 | I60: 34.2 | J60: 36.2
A61: Rozliczenia międzyokresowe przychodów | B61: Deferred income | C61: 9.8 | D61: 11.1 | E61: 10.9 | F61: 9.7 | G61: 7.8 | H61: 10 | I61: 16.3 | J61: 440.5
A62: Rozliczenia międzyokresowe kosztów | B62: Accruals | C62: 340.5 | D62: 326.9 | E62: 285.2 | F62: 265.5 | G62: 274.6 | H62: 264.9 | I62: 266.7 | J62: 238.6
C63: =SUM(C52:C62) -> 3864.6 | D63: =SUM(D52:D62) -> 3735.1 | E63: 3471.3 | F63: =SUM(F52:F62) -> 3402.7 | G63: 3119.7 | H63: =SUM(H52:H62) -> 2938.2 | I63: 2883.1 | J63: =SUM(J52:J62) -> 2533.8
A64: Suma zobowiązań | B64: Total liabilities | C64: =SUM(C50,C63) -> 6616.9 | D64: =SUM(D50,D63) -> 6460.7 | E64: 6024.9 | F64: =SUM(F50,F63) -> 5997.3 | G64: 4983.8 | H64: =SUM(H50,H63) -> 4684.9 | I64: 4676.4 | J64: =SUM(J50,J63) -> 4404
A66: SUMA PASYWÓW | B66: TOTAL EQUITY AND LIABILITIES | C66: =SUM(C64,C40) -> 14597.9 | D66: 14417.1 | E66: 13687.6 | F66: 13897.7 | G66: 12646.1 | H66: 12157.3 | I66: 12035.9 | J66: 11680.5

Sheet CF
A1: Rachunek przepływów pieniężnych (Grupa Asseco) | B1: Statement of cash flows (Asseco Group)
C2: Q1-Q4 2019 | D2: Q1-Q4 2018
C4: mln PLN | D4: mln PLN
A6: Przepływy środków pieniężnych z działalności operacyjnej | B6: Cash flows - operating activities
A7: Zysk przed opodatkowaniem i udziałem w wynikach jednostek stowarzyszonych i wspólnych przedsięwzięć | B7: Profit before tax and share of profits of associates and joint ventures | C7: 888.1 | D7: 774
A9: Korekty o pozycje: | B9: Total adjustments: | C9: =SUM(C10:C24) -> 881.6 | D9: =SUM(D10:D24) -> 403.8
A10: Amortyzacja | B10: Depreciation and amortization | C10: 635.4 | D10: 459.5
A11: Zmiany stanu kapitału pracującego (szczegóły poniżej) | B11: Changes in working capital (see below) | C11: 130.3 | D11: -83.2
A12: Przychody/koszty z tytułu odsetek | B12: Interest income/expenses | C12: 83.7 | D12: 26.6
A13: Przychody/koszty z różnic kursowych | B13: Gain/loss on foreign exchange differences | C13: 3.2 | D13: -25.6
A14: Przychody/koszty z tytułu aktywów finansowych [1] | B14: Gain/loss on financial assets [1] | C14: -4.7 | D14: -0.9
A15: Pozostałe przychody/koszty finansowe | B15: Other financial income/expenses | C15: 15.7 | D15: 12.7
A16: Zysk na utracie kontroli nad spółkami zależnymi | B16: Gain on lose of control over subsidiaries | C16: 0 | D16: 0
A17: Odpis z tytułu utraty wartości firmy | B17: Write-off of consolidated goodwill | C17: 0 | D17: 0
A18: Zyski/straty na sprzedaży rzeczowych AT i WN [2] | B18: Gain/loss on disposal of PPE and IA [2] | C18: -2.7 | D18: -4
A19: Zysk na sprzedaży spółki zależnej | B19: Gain on disposal of subsidiary | C19: 0 | D19: -9
A20: Zysk na sprzedaży działalności zaniechanej | B20: Gain on disposal of discontinued operations | C20: 0 | D20: 0
A21: Koszty trans. z pracownikami rozliczanych w formie instr. kapitałowych | B21: Costs of equity-settled employee payment transactions | C21: 16.6 | D21: 21.6
A22: Odpis aktualizujący wartości niematerialne, rzeczowe aktywa trwałe i nieruchomości inwestycyjne | B22: Impairment of intangible and tangible fixed assets and investment property
A23: Zyski/straty z tytułu likwidacji rzeczowych aktywów trwałych i wartości niematerialnych | B23: Profit / loss on liquidation of FA and IA | C23: 3.9 | D23: 6.1
A24: Pozostałe korekty zysku brutto | B24: Other pre-tax profit adjustments | C24: 0.2 | D24: 0
A25: Środki pieniężne netto wygenerowane z działalności operacyjnej | B25: Cash generated from operating activities | C25: =C9+C7 -> 1769.7 | D25: =D9+D7 -> 1177.8
A26: Zapłacony podatek dochodowy | B26: Corporate income tax paid | C26: -268.4 | D26: -177.1
A27: Środki pieniężne netto z działalności operacyjnej | B27: Net cash provided by (used in) operating activities | C27: =C25+C26 -> 1501.3 | D27: =D25+D26 -> 1000.7
A29: Przepływy środków pieniężnych z działalności inwestycyjnej | B29: Cash flows – investing activities
A30: Wpływy ze sprzedaży rzeczowych AT i WN [2] oraz NI [6] | B30: Disposal of PPE and IA [2] and IP [6] | C30: 28.2 | D30: 7.9
A31: Nabycie rzeczowych AT i WN [2] oraz NI [6] | B31: Acquisition of PPE and IA [2] | C31: -319.7 | D31: -240.3
A32: Wydatki z tytułu nabycia jedn. zależnych i stowarzyszonych | B32: Expenditures for the acquisition of subsidiaries and associates | C32: -328.2 | D32: -248.6
A33: Środki pieniężne i ich ekwiwalenty w nabytych jednostkach zależnych | B33: Cash and cash equivalents in subsidiaries acquired
A34: Wpływy ze sprzedaży akcji/udziałów w jednostkach powiązanych | B34: Proceeds from sale of investment in subsidiaries | C34: 12.5 | D34: 21.2
A35: Środki pieniężne i ich ekwiwalenty w sprzedanych jednostkach zależnych (działalność zaniechana) | B35: Cash and cash equivalents in subsidiaries disposed of (discontinued operations) | C35: 0 | D35: 6.4
A36: Wpływy ze sprzedaży/rozliczenia aktywów finansowych [3] / [7] | B36: Disposal/settlement of financial assets [3] / [7] | C36: 13.1 | D36: 16.6
A37: Wydatki na nabycie/wydatki z tytułu rozliczenia aktywów finansowych [4] / [8] | B37: Acquisition/settlement of financial assets [4] / [8] | C37: -90.3 | D37: -17.7
A38: Środki pieniężne i ich ekwiwalenty w sprzedanych jednostkach zależnych (działalność zaniechana) | C38: 0 | D38: 0
A39: Wpływ ze sprzedaży pozostałych instrumentów dłużnych [9] | B39: Disposal of other debt instruments [9] | C39: 6.6 | D39: 4.1
A40: Wydatki na nabycie inwestycji w instrumenty dłużne [10] | B40: Acquisition of ivestments in debt instruments measured at amortised cost [10] | C40: -16.2 | D40: -9.8
A41: Wpływ ze sprzedaży pozostałych aktywów finansowych | B41: Proceeds from sale of other financial assets | C41: 0 | D41: 0
A42: Pożyczki udzielone | B42: Loans granted | C42: -37 | D42: -85.4
A43: Pożyczki spłacone | B43: Loans collected | C43: 61 | D43: 35.3
A44: Otrzymane odsetki | B44: Interest received | C44: 9.2 | D44: 8.6
A45: Dywidendy otrzymane | B45: Dividends received | C45: 1.6 | D45: 1.7
A46: Pozostałe przepływy z działalności inwestycyjnej | B46: Other cash flows from investing activities | C46: -10.5 | D46: -0.1
A47: Środki pieniężne netto wykorzystane w działalności inwestycyjnej | B47: Net cash provided by (used in) investing activities | C47: =SUM(C30:C46) -> -669.7 | D47: =SUM(D30:D46) -> -500.1
A49: Przepływy środków pieniężnych z działalności finansowej | B49: Cash flows – financing activities
A50: Wpływ z tytułu emisji kapitału | B50: Proceeds from issue of capital | C50: 0 | D50: 96.5
A51: Wpływy z realizacji programu opcji pracowniczych | B51: Proceeds from share-based payments | C51: 5.6 | D51: 0.9
A52: Wydatki z tytułu nabycia udziałów niekontrolujących | B52: Acquisition of non-controlling interests | C52: -29 | D52: -58
A53: Wpływy z tytułu zaciągnięcia pożyczek/kredytów | B53: Proceeds from bank loans and borrowings | C53: 555.3 | D53: 392.1
A54: Wpływy z tytułu emisji dłużnych papierów wartościowych | B54: Proceeds from the issuance of debt securities | C54: 320.9 | D54: 164.3
A55: Wykup dłużnych papierów wartościowych | B55: Repayment/redemption of debt securities | C55: -119.3 | D55: -34
A56: Spłata pożyczek/kredytów | B56: Repayment of bank loans and borrowings | C56: -439.1 | D56: -302.3
A57: Spłata zobowiązań z tytułu leasingu finansowego | B57: Finance lease liabilities paid | C57: -206.5 | D57: -29.3
A58: Zapłacone odsetki | B58: Interest paid | C58: -83.5 | D58: -40.6
A59: Dywidendy wypłacone przez Jednostkę Dominującą | B59: Dividends paid out to the shareholders of Parent Company | C59: -254.8 | D59: -249.8
A60: Dywidendy wypłacone dla udziałowców niekontrolujących | B60: Dividends paid out to non-controlling interests | C60: -251.4 | D60: -195.8
A61: Dotacje otrzymane [5] | B61: Grants received [5] | C61: 5.1 | D61: 1
A62: Dotacje zwrócone | B62: Grants returned | C62: 0 | D62: -9.5
A63: Pozostałe przepływy z działalności finansowej | B63: Other cash flows from financing activities | C63: 0 | D63: 0.2
A64: Środki pieniężne netto z działalności finansowej | B64: Net cash provided by (used in) financing activities | C64: =SUM(C50:C63) -> -496.7 | D64: =SUM(D50:D63) -> -264.3
A66: Zwiększenie/Zmniejszenie netto stanu środków pieniężnych i ich ekwiwalentów | B66: Net increase (decrease) in cash and cash equivalents | C66: =C27+C47+C64 -> 334.9 | D66: =D27+D47+D64 -> 236.3
A68: Różnice kursowe netto | B68: Net foreign exchange differences | C68: 15.8 | D68: 47.2
A69: Środki pieniężne i ich ekwiwalenty netto na dzień 1 stycznia | B69: Cash and cash equivalents at 1 January | C69: 1767.5 | D69: 1484
A70: Środki pieniężne i ich ekwiwalenty netto na dzień 31 grudnia | B70: Cash and cash equivalents at 31 December | C70: 2118.2 | D70: 1767.5
C71: =C69+C68+C66-C70 -> 0 | D71: =D69+D68+D66-D70 -> 0
C72: 0 | D72: 0
A73: Zmiany stanu kapitału pracującego | B73: Changes in working capital
C74: =C2 -> Q1-Q4 2019 | D74: =D2 -> Q1-Q4 2018
C76: =C4 -> mln PLN | D76: =D4 -> mln PLN
A77: Zmiana stanu zapasów | B77: Change in inventories | C77: -21.5 | D77: -18.6
A78: Zmiana stanu należności i aktywów niefinansowych | B78: Change in receivables and non-financial assets | C78: 85.3 | D78: -215.3
A79: Zmiana stanu zobowiązań | B79: Change in liabilities | C79: 58.3 | D79: 172.7
A80: Zmiana stanu rozliczeń międzyokresowych | B80: Change in prepayments and accruals | C80: 20.5 | D80: -5.2
A81: Zmiana stanu rezerw | B81: Change in provisions | C81: -2.9 | D81: -15
A82: Zmiana stanu pozostałe | B82: Change in restricted cash | C82: -9.4 | D82: -1.8
C83: =ROUND(SUM(C77:C82),1) -> 130.3 | D83: =SUM(D77:D82) -> -83.2
C84: =C83-C11 -> 0 | D84: =D83-D11 -> 0
A85: Objaśnienia: | B85: Legend:
A86: [1] Przychody/koszty z tytułu aktywów finansowych (wycena; sprzedaż; utrata wartości itp) | B86: [1] Gain/loss on financial assets (valuation, disposal, impairment, etc.)
A87: [2] AT i WN - aktywów trwałych i wartości niematerialnych | B87: [2] PPE and IA - property, plant and equipment and intangible assets
A88: [3] Wpływy ze sprzedaży/rozliczenia akt. finansowych . wycenianych w wart. godz. przez wynik finansowy | B88: [3] Disposal/settlement of financial assets carried at fair value through profit or loss
A89: [4] Wydatki na nabycie/wydatki z tytułu rozliczenia akt. fin. wycenianych w wart. godz. przez wynik finansowy | B89: [4] Acquisition/settlement of financial assets carried at fair value through profit or loss
A90: [5] Dotacje otrzymane do zakupu środków trwałych lub/i projektów rozwojowych | B90: [5] Grants received for purchases of property, plant and equipment and/or development projects
A91: [6] NI - nieruchomości inwestycyjnych | B91: [6] IP - investment property
A92: [7] Wpływy ze sprzedaży aktywów finansowych wycenianych w wartości godziwej przez pozostałe dochody całkowite | B92: [7] Proceeds from disposal of financial assets valued at fair value through other comprehensive income
A93: [8] Nabycie aktywów finansowych wycenianych w wartości godziwej przez pozostałe dochody całkowite | B93: [8] Purchase of financial assets valued at fair value through other comprehensive income
A94: [9] Wpływ ze sprzedaży inwestycji w pozostałe instrumenty dłużne wyceniane w zamortyzowanym koszcie | B94: [9] Disposal of other debt instruments carried valued at amortized cost
A95: [10] Nabycie inwestycji w pozostałe instrumenty dłużne wyceniane w zamortyzowanym koszcie | B95: [10] Acquisition of investment in other debt instruments valued at amortized cost

Sheet Segments
A1: Segmenty działalności | B1: Operating segments
A3: Przejdź do: | B3: Go to:
A4: =seg_pl_pl ->  | B4: =seg_en_pl -> 
A5: =seg_pl_see ->  | B5: =seg_en_see -> 
A6: =seg_pl_we ->  | B6: =seg_en_we -> 
A10: Segment Asseco Poland | B10: Segment Asseco Poland | C10: Q4 2019 | D10: Q3 2019 | E10: Q2 2019 | F10: Q1 2019 | G10: Q4 2018 | H10: Q3 2018 | I10: Q2 2018 | J10: Q1 2018
C12: mln PLN | D12: mln PLN | E12: mln PLN | F12: mln PLN | G12: mln PLN | H12: mln PLN | I12: mln PLN | J12: mln PLN
A14: Sprzedaż na rzecz klientów zewnętrznych | B14: Sales to external customers | C14: 314.7 | D14: 287.3 | E14: 302.8 | F14: 294.9 | G14: 376.5 | H14: 306.1 | I14: 350.2 | J14: 314.5
A15: Sprzedaż pomiędzy segmentami | B15: Inter-segment sales | C15: 3.8 | D15: 2.8 | E15: 2.3 | F15: 3.7 | G15: 5.7 | H15: 2.1 | I15: 1.9 | J15: 1.8
A16: Zysk/strata netto z działalności operacyjnej segmentu | B16: Net operating profit/loss | C16: 27.5 | D16: 38.2 | E16: 44.1 | F16: 43.3 | G16: 47.6 | H16: 52.6 | I16: 64.7 | J16: 55.8
A17: Przychody z tytułu odsetek | B17: Interest income | C17: 1.3 | D17: 1.2 | E17: 1.1 | F17: 1.6 | G17: 1.6 | H17: 2 | I17: 0.7 | J17: 2.2
A18: Koszty z tytułu odsetek | B18: Interest expenses | C18: -1.3 | D18: -4 | E18: -1.4 | F18: -1.7 | G18: -1.3 | H18: -2.3 | I18: -2 | J18: -1.4
A19: Podatek dochodowy | B19: Corporate income tax | C19: -6.2 | D19: -6.9 | E19: -7.8 | F19: -8.1 | G19: -14.2 | H19: -12.5 | I19: -13.9 | J19: -15.1
A20: Pozycje niepieniężne: | B20: Non-cash items:
A21: Amortyzacja | B21: Depreciation and amortization | C21: -22.7 | D21: -22.8 | E21: -22.8 | F21: -23.4 | G21: -21.6 | H21: -21.8 | I21: -19.9 | J21: -19.8
A22: w tym amortyzacja wartości niematerialnych rozpoznanych w wyniku procesu alokacji ceny nabycia (PPA) | B22: of which amortization of IA recognized in purchase price allocation process (PPA) | C22: -4.1 | D22: -4.2 | E22: -4.7 | F22: -3.7 | G22: -4.8 | H22: -4.6 | I22: -4.2 | J22: -4.2
A23: Koszty transakcji z pracownikami rozliczanych w formie instrumentów kapitałowych | B23: Costs of share-based payment transactions with employees | C23: 0 | D23: 0 | E23: 0 | F23: 0 | G23: 0 | H23: 0 | I23: 0 | J23: 0
A24: Odpis z tyt. utraty wartości aktywów segmentu | B24: Impairment write-downs on segment assets | C24: 1.2 | D24: -0.4 | E24: -2.7 | F24: 2.6 | G24: -3.7 | H24: -1.4 | I24: -4.2 | J24: 6.9
A26: Udział w wynikach jednostek stowarzyszonych i wspólnych przedsięwziąć | B26: Share in profits of associates and joint ventures | C26: -0.4 | D26: -0.6 | E26: -0.4 | F26: 0 | G26: 1.1 | H26: 0.2 | I26: -0.6 | J26: -0.6
A27: Zysk/strata netto segmentu przypisany Jednostce Dominującej | B27: Net profit/loss attributable to shareholders of the Parent Company | C27: 20 | D27: 24.9 | E27: 33.5 | F27: 35.3 | G27: 37 | H27: 40.5 | I27: 45.3 | J27: 38.8
A28: Środki pieniężne netto z działalności operacyjnej | B28: Net cash provided by (used in) operating activities | C28: 110.3 | D28: 90.4 | E28: 26.6 | F28: 68.4 | G28: 128.4 | H28: 67.2 | I28: 104.3 | J28: 54.5
A29: Wartość firmy | B29: Goodwill ( in comparative periods balance as at 31.12.2017) | C29: 2260.6 | D29: 2260.6 | E29: 2260.7 | F29: 2257.1 | G29: 2257.1 | H29: 2256.3 | I29: 2256.9 | J29: 2253.7
A31: Wpływ wdrożenia MSSF 16 na EBITDA | B31: Impact of implementing IFRS 16 on EBITDA | C31: 3.1 | D31: 3 | E31: 2.6 | F31: 3.2 | G31: 0 | H31: 0 | I31: 0 | J31: 0
A32: Wpływ wdrożenia MSSF 16 na EBIT | B32: Impact of implementing IFRS 16 on EBIT | C32: 0.5 | D32: 0.2 | E32: 0 | F32: 0.4 | G32: 0 | H32: 0 | I32: 0 | J32: 0
A33: Wpływ wdrożenia MSSF 16 na zysk netto | B33: Impact of implementing IFRS 16 on net profit | C33: 0 | D33: -0.1 | E33: -0.6 | F33: -0.2 | G33: 0 | H33: 0 | I33: 0 | J33: 0
A36: Segment Asseco International | B36: Segment Asseco International | C36: Q4 2019 | D36: Q3 2019 | E36: Q2 2019 | F36: Q1 2019 | G36: Q4 2018 | H36: Q3 2018 | I36: Q2 2018 | J36: Q1 2018
C38: mln PLN | D38: mln PLN | E38: mln PLN | F38: mln PLN | G38: mln PLN | H38: mln PLN | I38: mln PLN | J38: mln PLN
A40: Sprzedaż na rzecz klientów zewnętrznych | B40: Sales to external customers | C40: 894.1 | D40: 685.9 | E40: 671.7 | F40: 674.5 | G40: 788.6 | H40: 586.7 | I40: 640.6 | J40: 573.6
A41: Sprzedaż pomiędzy segmentami | B41: Inter-segment sales | C41: 2.5 | D41: 0.7 | E41: 0.9 | F41: -0.9 | G41: -1.5 | H41: 0.1 | I41: 3.7 | J41: 0.4
A42: Zysk/strata netto z działalności operacyjnej segmentu | B42: Net operating profit/loss | C42: 110.9 | D42: 88.2 | E42: 74.4 | F42: 76.4 | G42: 91.1 | H42: 58.9 | I42: 69.6 | J42: 54.3
A43: Przychody z tytułu odsetek | B43: Interest income | C43: 1.6 | D43: 1.5 | E43: 2 | F43: 1.6 | G43: 1.5 | H43: 1.7 | I43: 1.8 | J43: 1.4
A44: Koszty z tytułu odsetek | B44: Interest expenses | C44: -2.4 | D44: -2.4 | E44: -1.9 | F44: -1.9 | G44: -1 | H44: -1.2 | I44: -0.9 | J44: -0.7
A45: Podatek dochodowy | B45: Corporate income tax | C45: -20.2 | D45: -18.4 | E45: -17.7 | F45: -16.1 | G45: -16.8 | H45: -13.5 | I45: -16.2 | J45: -14.7
A46: Pozycje niepieniężne: | B46: Non-cash items:
A47: Amortyzacja | B47: Depreciation and amortization | C47: -40 | D47: -38.3 | E47: -35.9 | F47: -34.5 | G47: -25.2 | H47: -27.3 | I47: -27.8 | J47: -24.7
A48: w tym amortyzacja wartości niematerialnych rozpoznanych w wyniku procesu alokacji ceny nabycia (PPA) | B48: of which amortization of IA recognized in purchase price allocation process (PPA) | C48: -2.5 | D48: -2.6 | E48: -2.2 | F48: -2.3 | G48: -3.1 | H48: -2 | I48: -2 | J48: -1.9
A49: Koszty transakcji z pracownikami rozliczanych w formie instrumentów kapitałowych | B49: Costs of share-based payment transactions with employees | C49: -0.3 | D49: -0.3 | E49: -0.8 | F49: -0.7 | G49: -0.7 | H49: -0.6 | I49: -1.8 | J49: 0.6
A50: Odpis z tyt. utraty wartości aktywów segmentu | B50: Impairment write-downs on segment assets | C50: -2.2 | D50: -3.9 | E50: -1.8 | F50: -2.3 | G50: -4.7 | H50: -3.6 | I50: 0.4 | J50: -0.6
A52: Udział w wynikach jednostek stowarzyszonych i wspólnych przedsięwziąć | B52: Share in profits of associates and joint ventures | C52: 3.7 | D52: 0.2 | E52: -1.3 | F52: -1.9 | G52: 1.1 | H52: 0.1 | I52: 0.3 | J52: -1
A53: Zysk/strata netto segmentu przypisany Jednostce Dominującej | B53: Net profit/loss attributable to shareholders of the Parent Company | C53: 55.7 | D53: 45 | E53: 36.6 | F53: 38.3 | G53: 53.3 | H53: 31.8 | I53: 38.2 | J53: 26.3
A54: Środki pieniężne netto z działalności operacyjnej | B54: Net cash provided by (used in) operating activities | C54: 299.8 | D54: 69.6 | E54: 43.3 | F54: 80.5 | G54: 229.9 | H54: 67.3 | I54: 58 | J54: 40.5
A55: Wartość firmy | B55: Goodwill ( in comparative periods balance as at 31.12.2017) | C55: 1434.8 | D55: 1443.2 | E55: 1355.5 | F55: 1362.7 | G55: 1367.7 | H55: 1366.1 | I55: 1394 | J55: 1345.6
A57: Wpływ wdrożenia MSSF 16 na EBITDA | B57: Impact of implementing IFRS 16 on EBITDA | C57: 15.1 | D57: 11.32 | E57: 11.8 | F57: 10.4 | G57: 0 | H57: 0 | I57: 0 | J57: 0
A58: Wpływ wdrożenia MSSF 16 na EBIT | B58: Impact of implementing IFRS 16 on EBIT | C58: 1.8 | D58: -0.1 | E58: 1.1 | F58: 0.4 | G58: 0 | H58: 0 | I58: 0 | J58: 0
A59: Wpływ wdrożenia MSSF 16 na zysk netto | B59: Impact of implementing IFRS 16 on net profit | C59: 0.8 | D59: -1.5 | E59: -0.8 | F59: -0.1 | G59: 0 | H59: 0 | I59: 0 | J59: 0
A62: Segment Formula Systems | B62: Segment Formula Systems
C63: Q4 2019 | D63: Q3 2019 | E63: Q2 2019 | F63: Q1 2019 | G63: Q4 2018 | H63: Q3 2018 | I63: Q2 2018 | J63: Q1 2018
C65: mln PLN | D65: mln PLN | E65: mln PLN | F65: mln PLN | G65: mln PLN | H65: mln PLN | I65: mln PLN | J65: mln PLN
A67: Sprzedaż na rzecz klientów zewnętrznych | B67: Sales to external customers | C67: 1729.3 | D67: 1765.2 | E67: 1564.2 | F67: 1482.8 | G67: 1485.2 | H67: 1325.6 | I67: 1320.1 | J67: 1260.9
A68: Sprzedaż pomiędzy segmentami | B68: Inter-segment sales | C68: 3.2 | D68: 3.4 | E68: 3 | F68: 3.3 | G68: 3 | H68: 2.2 | I68: 2.8 | J68: 2.9
A69: Zysk/strata netto z działalności operacyjnej segmentu | B69: Net operating profit/loss | C69: 123.3 | D69: 135 | E69: 109.4 | F69: 105 | G69: 99.7 | H69: 74.8 | I69: 69.8 | J69: 56.8
A70: Przychody z tytułu odsetek | B70: Interest income | C70: 0.1 | D70: 2.3 | E70: 0.9 | F70: 1.3 | G70: 0.8 | H70: 0.7 | I70: 0.5 | J70: 0.4
A71: Koszty z tytułu odsetek | B71: Interest expenses | C71: -14.5 | D71: -19.8 | E71: -17.2 | F71: -13.8 | G71: -11.4 | H71: -11.2 | I71: -10.4 | J71: -9.9
A72: Podatek dochodowy | B72: Corporate income tax | C72: -21.8 | D72: -25.5 | E72: -22.7 | F72: -19.6 | G72: -25.9 | H72: -11 | I72: -15.1 | J72: -13.4
A73: Pozycje niepieniężne: | B73: Non-cash items:
A74: Amortyzacja | B74: Depreciation and amortization | C74: -107 | D74: -104.1 | E74: -101 | F74: -87.5 | G74: -70 | H74: -65.9 | I74: -65.5 | J74: -73.6
A75: w tym amortyzacja wartości niematerialnych rozpoznanych w wyniku procesu alokacji ceny nabycia (PPA) | B75: of which amortization of IA recognized in purchase price allocation process (PPA) | C75: -47.4 | D75: -48.6 | E75: -44.4 | F75: -44.9 | G75: -51.1 | H75: -47.5 | I75: -48.1 | J75: -56.5
A76: Koszty transakcji z pracownikami rozliczanych w formie instrumentów kapitałowych | B76: Costs of share-based payment transactions with employees | C76: -3.1 | D76: -4 | E76: -3 | F76: -4.4 | G76: -3.9 | H76: -4.7 | I76: -5.7 | J76: -4.8
A77: Odpis z tyt. utraty wartości aktywów segmentu | B77: Impairment write-downs on segment assets | C77: -1.9 | D77: -0.9 | E77: -0.6 | F77: 0.1 | G77: -1.7 | H77: -0.8 | I77: -0.9 | J77: -1.6
A79: Udział w wynikach jednostek stowarzyszonych i wspólnych przedsięwziąć | B79: Share in profits of associates and joint ventures | C79: 1.2 | D79: 1.6 | E79: 1.4 | F79: 2.8 | G79: 1.6 | H79: 0 | I79: -0.4 | J79: 0.2
A80: Zysk/strata netto segmentu przypisany Jednostce Dominującej | B80: Net profit/loss attributable to shareholders of the Parent Company | C80: 8.7 | D80: 8.8 | E80: 8.8 | F80: 6 | G80: 7.8 | H80: 4.3 | I80: 5.1 | J80: 3.4
A81: Środki pieniężne netto z działalności operacyjnej | B81: Net cash provided by (used in) operating activities | C81: 382.7 | D81: 245.7 | E81: 135.6 | F81: 218.1 | G81: 241.5 | H81: 55.1 | I81: 40.5 | J81: 89
A82: Wartość firmy | B82: Goodwill ( in comparative periods balance as at 31.12.2017) | C82: 880.7 | D82: 922.6 | E82: 795.2 | F82: 796.6 | G82: 628.3 | H82: 575 | I82: 551.3 | J82: 3918.4
A84: Wpływ wdrożenia MSSF 16 na EBITDA | B84: Impact of implementing IFRS 16 on EBITDA | C84: 33.2 | D84: 36.2 | E84: 33.3 | F84: 31.6 | G84: 0 | H84: 0 | I84: 0 | J84: 0
A85: Wpływ wdrożenia MSSF 16 na EBIT | B85: Impact of implementing IFRS 16 on EBIT | C85: -2 | D85: 2.6 | E85: 1.7 | F85: 2.9 | G85: 0 | H85: 0 | I85: 0 | J85: 0
A86: Wpływ wdrożenia MSSF 16 na zysk netto | B86: Impact of implementing IFRS 16 on net profit | C86: -4 | D86: -1.5 | E86: -3.3 | F86: 0 | G86: 0 | H86: 0 | I86: 0 | J86: 0

Sheet company results (hidden)
E1: Sales revenues | N1: Operating profit | W1: Operating profit non-IFRS | AF1: Net profit 100% | AO1: Contribution to net profit of ACP | AX1: Contribution to net profit non-IFRS of ACP
E2: Q4 2019 | F2: Q3 2019 | G2: Q2 2019 | H2: Q1 2019 | I2: Q4 2018 | J2: Q3 2018 | K2: Q2 2018 | L2: Q1 2018 | N2: Q4 2019 | O2: Q3 2019 | P2: Q2 2019 | Q2: Q1 2019 | R2: Q4 2018 | S2: Q3 2018 | T2: Q2 2018 | U2: Q1 2018 | W2: Q4 2019 | X2: Q3 2019 | Y2: Q2 2019 | Z2: Q1 2019 | AA2: Q4 2018 | AB2: Q3 2018 | AC2: Q2 2018 | AD2: Q1 2018 | AF2: Q4 2019 | AG2: Q3 2019 | AH2: Q2 2019 | AI2: Q1 2019 | AJ2: Q4 2018 | AK2: Q3 2018 | AL2: Q2 2018 | AM2: Q1 2018 | AO2: Q4 2019 | AP2: Q3 2019 | AQ2: Q2 2019 | AR2: Q1 2019 | AS2: Q4 2018 | AT2: Q3 2018 | AU2: Q2 2018 | AV2: Q1 2018 | AX2: Q4 2019 | AY2: Q3 2019 | AZ2: Q2 2019 | BA2: Q1 2019 | BB2: Q4 2018 | BC2: Q3 2018 | BD2: Q2 2018 | BE2: Q1 2018
B3: Segment Asseco Poland | E3: 318500000 | F3: 290100000 | G3: 305100000 | H3: 298600000 | I3: 382200000 | J3: 308200000 | K3: 352100000 | L3: 316300000 | N3: 27500000 | O3: 38200000 | P3: 44100000 | Q3: 43300000 | R3: 47600000 | S3: 52600000 | T3: 64700000 | U3: 55800000 | W3: 31517000 | X3: 42415000 | Y3: 48868000 | Z3: 46963000 | AA3: 52401611.11 | AB3: 57201888.89 | AC3: 68917000 | AD3: 60015000 | AF3: 20997000 | AG3: 25786000 | AH3: 35529000 | AI3: 36046000 | AJ3: 38170000 | AK3: 42641000.25 | AL3: 47387684.99 | AM3: 40102344 | AO3: 19998900.09 | AP3: 24904693.43 | AQ3: 33558061.85 | AR3: 35278168.59 | AS3: 37024006.86 | AT3: 40449367.94 | AU3: 45274107.62 | AV3: 38838820.02 | AX3: 23305010.09 | AY3: 28268693.43 | AZ3: 37655121.85 | BA3: 38245108.59 | BB3: 37137603.95 | BC3: 43380577.79 | BD3: 48799776.92 | BE3: 42233927.18
B4: Asseco Poland (excl. dividends) | E4: 208784000 | F4: 191685000 | G4: 210024000 | H4: 195051000 | I4: 251505000 | J4: 210982000 | K4: 225425000 | L4: 205373000 | N4: 20223000 | O4: 28117000 | P4: 31933000 | Q4: 29061000 | R4: 44687000 | S4: 47506000 | T4: 43215000 | U4: 46308000 | W4: 22731000 | X4: 30825000 | Y4: 34640000 | Z4: 31769000 | AA4: 47397000 | AB4: 50213000 | AC4: 45922000 | AD4: 49016000 | AF4: 16943000 | AG4: 22701000 | AH4: 28206000 | AI4: 24125000 | AJ4: 36002000 | AK4: 40170000 | AL4: 30938000 | AM4: 38885000 | AO4: 16943590.97 | AP4: 22699789.32 | AQ4: 28206840.23 | AR4: 24126272.14 | AS4: 35998889.84 | AT4: 40171489.3 | AU4: 30952157.06 | AV4: 38871445.81 | AX4: 18974700.97 | AY4: 24894789.32 | AZ4: 29609360.23 | BA4: 26319752.14 | BB4: 38193989.43 | BC4: 42381339.35 | BD4: 33205951.2 | BE4: 41021568.13
B5: Asseco Data Systems | C5: Asseco Data Systems PF | D5: Asseco Data Systems PF | E5: 74111000 | F5: 60973000 | G5: 68301000 | H5: 72401000 | I5: 91508000 | J5: 76711000 | K5: 93260000 | L5: 89075000 | N5: 6438000 | O5: 916000 | P5: 8071000 | Q5: 8989000 | R5: 6374000 | S5: 1308000 | T5: 12511000 | U5: 5623000 | W5: 7857000 | X5: 2334000 | Y5: 9491000 | Z5: 10407000 | AA5: 7792000 | AB5: 2725000 | AC5: 13932000 | AD5: 7041000 | AF5: 4971000 | AG5: -2858000 | AH5: 6262000 | AI5: 7819000 | AJ5: 3704000 | AK5: 979000 | AL5: 10087000 | AM5: 4471000 | AO5: 4971000 | AP5: -2858000 | AQ5: 6262000 | AR5: 7819000 | AS5: 3704000 | AT5: 979000 | AU5: 10087000 | AV5: 4471000 | AX5: 6121000 | AY5: -1710000 | AZ5: 7412420 | BA5: 8967580 | BB5: 4852580 | BC5: 2126770 | BD5: 11238010 | BE5: 5619580
B6: Other | E6: 49022000 | F6: 47596000 | G6: 40737000 | H6: 40260000 | I6: 51071000 | J6: 38749000 | K6: 43634000 | L6: 34999000 | N6: 3889315.355 | O6: 8740946.064 | P6: 4254000 | Q6: 4142000 | R6: 5913000 | S6: 7299000 | T6: 6700000 | U6: 4411000 | W6: 3889315.355 | X6: 8740946.064 | Y6: 4254000 | Z6: 4142000 | AA6: 5913000 | AB6: 7299000 | AC6: 6700000 | AD6: 4411000 | AF6: 2593315.355 | AG6: 5898946.064 | AH6: 2179000 | AI6: 3036000 | AJ6: 4852000 | AK6: 5748000 | AL6: 4613000 | AM6: 2511000 | AO6: 1532753.871 | AP6: 5061823.822 | AQ6: 241995.3038 | AR6: 2230132.103 | AS6: 3770773.463 | AT6: 3189981.882 | AU6: 2583968.304 | AV6: 1166531.266 | AX6: 1534753.871 | AY6: 5061823.822 | AZ6: 241995.3038 | BA6: 2230132.103 | BB6: 3795883.463 | BC6: 3189981.882 | BD6: 2583968.304 | BE6: 1166531.266
D7: adjustment | E7: -13417000 | F7: -10154000 | G7: -13962000 | H7: -9112000 | I7: -11884000 | J7: -18242000 | K7: -10219000 | L7: -13147000 | N7: -3050315.355 | O7: 426053.9356 | P7: -158000 | Q7: 1108000 | R7: -9374000 | S7: -3513000 | T7: 2274000 | U7: -542000 | W7: -2960315.355 | X7: 515053.9356 | Y7: 483000 | Z7: 645000 | AA7: -8700388.889 | AB7: -3035111.111 | AC7: 2363000 | AD7: -453000 | AF7: -3510315.355 | AG7: 44053.93556 | AH7: -1118000 | AI7: 1066000 | AJ7: -6388000 | AK7: -4255999.75 | AL7: 1749684.99 | AM7: -5764656 | AO7: -3448444.747 | AP7: 1080.283389 | AQ7: -1152773.682 | AR7: 1102764.348 | AS7: -6449656.442 | AT7: -3891103.24 | AU7: 1650982.252 | AV7: -5670157.058 | AX7: -3325444.747 | AY7: 22080.28339 | AZ7: 391346.3178 | BA7: 727644.3478 | BB7: -9704848.942 | BC7: -4317513.442 | BD7: 1771847.41 | BE7: -5573752.22
B8: Segment Formula Systems | E8: 1732500000 | F8: 1768600000 | G8: 1567200000 | H8: 1486100000 | I8: 1488200000 | J8: 1327800000 | K8: 1322900000 | L8: 1263800000 | N8: 123300000 | O8: 135000000 | P8: 109400000 | Q8: 105000000 | R8: 99700000 | S8: 74800000 | T8: 69800000 | U8: 56800000 | W8: 173837776.3 | X8: 187652290.6 | Y8: 156731041.3 | Z8: 154312220.2 | AA8: 155249344.8 | AB8: 126526248.9 | AC8: 123554359.8 | AD8: 118103675.9 | AF8: 81994000 | AG8: 85286000 | AH8: 75224000 | AI8: 60963000 | AJ8: 65893000 | AK8: 44935000 | AL8: 45030678.94 | AM8: 32971321.06 | AO8: 8712423.404 | AP8: 8806254.977 | AQ8: 8857314.729 | AR8: 5952207.628 | AS8: 7869090.088 | AT8: 4273191.918 | AU8: 5155191.379 | AV8: 3352027.306 | AX8: 14771843.56 | AY8: 14330324.1 | AZ8: 13698780.87 | BA8: 11128723.83 | BB8: 14718032.06 | BC8: 10316918.24 | BD8: 11319105.83 | BE8: 10631090.3
B9: Matrix IT | E9: 998489337.6 | F9: 1066891860 | G9: 935449905.1 | H9: 888804243.2 | I9: 885310052 | J9: 765809682.8 | K9: 773974079.7 | L9: 759908192 | N9: 72032917.69 | O9: 75943784.22 | P9: 63016636.19 | Q9: 62884255.45 | R9: 69334136.72 | S9: 50707810.65 | T9: 53170361.63 | U9: 52733426.52 | W9: 78414439.92 | X9: 83105410.71 | Y9: 69441391.73 | Z9: 69610473.66 | AA9: 74626498.96 | AB9: 54447627.93 | AC9: 57451517.06 | AD9: 56373425.07 | AF9: 51907383.71 | AG9: 49026859.63 | AH9: 39682481.85 | AI9: 39895166.82 | AJ9: 44622358.29 | AK9: 31351500.5 | AL9: 34687108.95 | AM9: 34345845.84 | AO9: 6185929.06 | AP9: 5763528.203 | AQ9: 4662835.157 | AR9: 4814369.379 | AS9: 5498629.268 | AT9: 3876789.904 | AU9: 4293513.774 | AV9: 4339318.363 | AX9: 6831457.202 | AY9: 6683084.843 | AZ9: 5514801.167 | BA9: 5602516.477 | BB9: 6562281.789 | BC9: 4841869.986 | BD9: 5310002.299 | BE9: 5025176.544
B10: Magic Software | E10: 349840772.1 | F10: 337158171.4 | G10: 293085764 | H10: 271624575 | I10: 273324710 | J10: 264383788.9 | K10: 256256989 | L10: 236243311.3 | N10: 33826256.86 | O10: 35671641.79 | P10: 30437457 | Q10: 31735307.65 | R10: 31698428.13 | S10: 28269706.46 | T10: 29089081.48 | U10: 25638257.42 | W10: 43709487.52 | X10: 45460698.05 | Y10: 37852031.07 | Z10: 37844798.87 | AA10: 38183396.74 | AB10: 35465706.83 | AC10: 35658794.38 | AD10: 31808108.98 | AF10: 22854916.56 | AG10: 25986436.52 | AH10: 23065808.74 | AI10: 24698989.58 | AJ10: 22962035.05 | AK10: 22487454.28 | AL10: 24685802.79 | AM10: 19614097.03 | AO10: 2062692.374 | AP10: 2289718.732 | AQ10: 2057419.928 | AR10: 2363685.408 | AS10: 2055315.533 | AT10: 2250208.041 | AU10: 2569075.479 | AV10: 1923780.68 | AX10: 3220244.88 | AY10: 3153635.277 | AZ10: 2553219.032 | BA10: 2882327.865 | BB10: 2633755.938 | BC10: 2942704.435 | BD10: 3196527.957 | BE10: 2513230.441
B11: Sapiens Int. | E11: 333644223.8 | F11: 325231382.6 | G11: 302516301.9 | H11: 290482664 | I11: 277241569.9 | J11: 268479678.1 | K11: 263261260.5 | L11: 240546283 | N11: 37138056.15 | O11: 45640974.26 | P11: 37104407.29 | Q11: 32325450.45 | R11: 27176939.1 | S11: 24342058.94 | T11: 17810254.85 | U11: 17547315.34 | W11: 47343498.48 | X11: 56907812.88 | Y11: 47241261.98 | Z11: 43314968.71 | AA11: 39384488.45 | AB11: 35733781.21 | AC11: 30448114.28 | AD11: 29202608.79 | AF11: 26315044.61 | AG11: 31109774.74 | AH11: 24156931.85 | AI11: 20129165.81 | AJ11: 16616487.98 | AK11: 18630461.96 | AL11: 6741688.76 | AM11: 10798087.27 | AO11: 3146533.394 | AP11: 3749456.18 | AQ11: 2931081.514 | AR11: 2488614.14 | AS11: 2062352.506 | AT11: 2350251.507 | AU11: 809498.1944 | AV11: 1364406.99 | AX11: 4359635.299 | AY11: 4857969.546 | AZ11: 3909014.464 | BA11: 3586421.661 | BB11: 3299279.487 | BC11: 3460949.149 | BD11: 2219936.365 | BE11: 2633408.464
B12: Other | C12: Other | D12: Other | E12: 54229560.63 | F12: 45579125.53 | G12: 42203679.77 | H12: 42059023.77 | I12: 55847848.78 | J12: 35429226.12 | K12: 34170665.01 | L12: 30456230.47 | N12: 3415322.143 | O12: 1051931.601 | P12: 1684324.881 | Q12: 2701038.224 | R12: 1823136.902 | S12: 1199975.389 | T12: -431457.4876 | U12: 491284.1715 | W12: 4448823.357 | X12: 1899161.093 | Y12: 2472363.825 | Z12: 3503818.971 | AA12: 3085152.858 | AB12: 912396.5239 | AC12: -113884.2847 | AD12: 786054.6744 | AF12: -674484.2428 | AG12: -2263184.915 | AH12: 6702910.659 | AI12: -4176395.237 | AJ12: 6622274.695 | AK12: -3118269.785 | AL12: 3164076.18 | AM12: 189737.3352 | AO12: -250541.5485 | AP12: -606090.015 | AQ12: 1650469.064 | AR12: -1127044.332 | AS12: 1694267.99 | AT12: -829839.9113 | AU12: 837837.4507 | AV12: 49115.61364 | AX12: 380641.1927 | AY12: -443239.2921 | AZ12: 1803542.155 | BA12: -968069.8651 | BB12: 2247552.852 | BC12: -913853.8777 | BD12: 916192.4039 | BE12: 115588.3576
B13: adjustment | C13: adjustment | D13: adjustment | E13: -3703894.143 | F13: -6260539.448 | G13: -6055650.654 | H13: -6870505.955 | I13: -3524180.631 | J13: -6302375.916 | K13: -4762994.178 | L13: -3354016.8 | N13: -23112552.84 | O13: -23308331.87 | P13: -22842825.36 | Q13: -24646051.78 | R13: -30332640.86 | S13: -29719551.44 | T13: -29838240.48 | U13: -39610283.45 | W13: -78472.97153 | X13: 279207.8355 | Y13: -276007.2944 | Z13: 38159.98939 | AA13: -30192.207 | AB13: -33263.6187 | AC13: 109818.3568 | AD13: -66521.6045 | AF13: -18408860.63 | AG13: -18573885.97 | AH13: -18384133.09 | AI13: -19583926.98 | AJ13: -24930156.02 | AK13: -24416146.95 | AL13: -24247997.74 | AM13: -31976446.41 | AO13: -2432189.876 | AP13: -2390358.123 | AQ13: -2444490.934 | AR13: -2587416.968 | AS13: -3441475.208 | AT13: -3374217.622 | AU13: -3354733.519 | AV13: -4324594.341 | AX13: -20135.01102 | AY13: 78873.72776 | AZ13: -81795.94745 | BA13: 25527.69077 | BB13: -24838.01136 | BC13: -14751.44766 | BD13: -323553.1999 | BE13: 343686.4895
B14: Segment Asseco International | C14: Segment Asseco International | D14: Segment Asseco International | E14: 896600000 | F14: 686600000 | G14: 672600000 | H14: 673600000 | I14: 787100000 | J14: 586800000 | K14: 644300000 | L14: 574000000 | N14: 110900000 | O14: 88200000 | P14: 74400000 | Q14: 76400000 | R14: 91100000 | S14: 58900000 | T14: 69600000 | U14: 54300000 | W14: 113727757.9 | X14: 91055961.96 | Y14: 77439419.69 | Z14: 79377654.77 | AA14: 94887053.9 | AB14: 61466614.83 | AC14: 72236627.2 | AD14: 56814525.93 | AF14: 92296000 | AG14: 70683000 | AH14: 57530000 | AI14: 60158000 | AJ14: 80654000 | AK14: 52325999.75 | AL14: 59333215.81 | AM14: 43133755.2 | AO14: 55606179.99 | AP14: 45006931.67 | AQ14: 36649428.24 | AR14: 38299910.41 | AS14: 53254700.86 | AT14: 31806986.39 | AU14: 38140689.12 | AV14: 26347970.54 | AX14: 58054957.15 | AY14: 47944271.18 | AZ14: 37927365.33 | BA14: 40129677.91 | BB14: 50123545.19 | BC14: 33123653.55 | BD14: 40172958.66 | BE14: 27943842.03
C15: Central Europe | D15: Central Europe | E15: 403211812.6 | F15: 295402297.3 | G15: 315722979.1 | H15: 319965093.5 | I15: 355493822.5 | J15: 278464465.4 | K15: 306810471.4 | L15: 272268722.4 | N15: 60006358.04 | O15: 48198238.28 | P15: 44591829.69 | Q15: 44882273.15 | R15: 52965473.62 | S15: 35683895.47 | T15: 39714131.25 | U15: 32716872 | W15: 60710351.92 | X15: 49104832.51 | Y15: 45310689.8 | Z15: 45681274.26 | AA15: 54572172.3 | AB15: 36165351.5 | AC15: 40200795.8 | AD15: 33180516.39 | AF15: 50146177.79 | AG15: 37607556.94 | AH15: 35347429.92 | AI15: 35216446.06 | AJ15: 49498521.03 | AK15: 28818292.01 | AL15: 30034723.65 | AM15: 24251433.6 | AO15: 32113971.02 | AP15: 27190610.78 | AQ15: 25590339.96 | AR15: 25210862.51 | AS15: 35116908.49 | AT15: 19976276.55 | AU15: 20967071.34 | AV15: 15849945.54 | AX15: 32453269.17 | AY15: 27823519.03 | AZ15: 26231760.72 | BA15: 25731806.89 | BB15: 29359731.06 | BC15: 20238713.94 | BD15: 21540272.06 | BE15: 16032404.27
C16: South Eastern Europe | D16: South Eastern Europe | E16: 275797340.8 | F16: 228834687 | G16: 198384469.2 | H16: 187076182.9 | I16: 261490760.7 | J16: 173909809.4 | K16: 183755656.2 | L16: 156138451.2 | N16: 34787537.9 | O16: 29345537.8 | P16: 22562279.15 | Q16: 21364359.67 | R16: 26719237.8 | S16: 19447109.62 | T16: 18823988.5 | U16: 13409180 | W16: 35599991.17 | X16: 30130583.69 | Y16: 23881732.13 | Z16: 22537320.33 | AA16: 27891700.41 | AB16: 20559389.61 | AC16: 19938634.15 | AD16: 14482315.94 | AF16: 28237718.63 | AG16: 24661683.6 | AH16: 18238050.73 | AI16: 18348450.36 | AJ16: 21352211.92 | AK16: 18805958.24 | AL16: 16113672.65 | AM16: 11557975.2 | AO16: 14356470.21 | AP16: 12520556.83 | AQ16: 9061518.55 | AR16: 9209143.18 | AS16: 10991226.86 | AT16: 9586954.823 | AU16: 8281768.204 | AV16: 5872741.388 | AX16: 15008936.55 | AY16: 12924768.84 | AZ16: 8646535.018 | BA16: 9839457.837 | BB16: 11597289.72 | BC16: 10166609.33 | BD16: 8862682.555 | BE16: 6432126.532
B17: Western Europe | C17: Western Europe | D17: Western Europe | E17: 215102554.1 | F17: 161073405.5 | G17: 156649012.5 | H17: 163936458.3 | I17: 168886672.8 | J17: 131496770.3 | K17: 155543111.3 | L17: 144236434 | N17: 17560790.26 | O17: 14836708.45 | P17: 10223366.66 | Q17: 12773330.23 | R17: 14635022.73 | S17: 6120649.518 | T17: 13227148.75 | U17: 11132100.8 | W17: 18872100.98 | X17: 16001030.3 | Y17: 11224473.25 | Z17: 13779023.23 | AA17: 15642915.34 | AB17: 7122528.334 | AC17: 14233465.75 | AD17: 12109846.4 | AF17: 12682445.21 | AG17: 13331893.06 | AH17: 8177801.134 | AI17: 11053027.25 | AJ17: 13403554.39 | AK17: 5953954.835 | AL17: 15062699.4 | AM17: 11382232 | AO17: 8767308.353 | AP17: 10160598.87 | AQ17: 5943807.93 | AR17: 8235524.331 | AS17: 10211690.13 | AT17: 3747467.25 | AU17: 11167388.33 | AV17: 8209680.37 | AX17: 9674757.418 | AY17: 11161881.21 | AZ17: 6672706.288 | BA17: 8788788.328 | BB17: 11022319.81 | BC17: 4290049.163 | BD17: 11725819.86 | BE17: 8745739.173
B18: Eastern Europe | C18: Eastern Europe | D18: Eastern Europe | E18: 1410823.41 | F18: 1372794.735 | G18: 1645179.421 | H18: 2505636.814 | I18: 1062771.089 | J18: 2315919.845 | K18: 2168475.75 | L18: 1015351.2 | N18: 273837.1216 | O18: 163097.2417 | P18: 578453.2955 | Q18: 189104.6652 | R18: 51727.1175 | S18: 237956.2842 | T18: 408445.35 | U18: -480516 | W18: 273837.1216 | X18: 163097.2417 | Y18: 578453.2955 | Z18: 189104.6652 | AA18: 51727.1175 | AB18: 237956.2842 | AC18: 408445.35 | AD18: -480516 | AF18: 3445511.831 | AG18: -192451.3142 | AH18: -677877.2947 | AI18: -1719133.32 | AJ18: 588364.1431 | AK18: 431932.927 | AL18: 955169.19 | AM18: -1535973.84 | AO18: 3134485.047 | AP18: -78313.09589 | AQ18: -975186.5737 | AR18: -1817270.574 | AS18: 598524.6894 | AT18: 255937.5442 | AU18: 777088.7792 | AV18: -1261723.931 | AX18: 3464658.977 | AY18: 259623.8058 | AZ18: -652585.0733 | BA18: -1692026.115 | BB18: 908290.0719 | BC18: 566930.6899 | BD18: 1141048.243 | BE18: -975755.1233
B19: Other | C19: Other | D19: Other | E19: 3046107.837 | F19: 225953.9122 | G19: 2131844.66 | H19: 63628.3901 | I19: 337643.9358 | J19: 819439.1332 | K19: 3049175.4 | L19: 359342.4 | N19: -1554998.339 | O19: -3090075.408 | P19: -3641998.464 | Q19: -2820067.719 | R19: -3821221.766 | S19: -2521739.006 | T19: -2540985 | U19: -2427650.4 | W19: -1554998.339 | X19: -3090075.408 | Y19: -3641998.464 | Z19: -2820067.719 | AA19: -3821221.766 | AB19: -2521739.006 | AC19: -2540985 | AD19: -2427650.4 | AF19: -1808897.707 | AG19: -3166972.229 | AH19: -3552058.772 | AI19: -2772790.346 | AJ19: -4396556.698 | AK19: -2033472.81 | AL19: -2757929.55 | AM19: -2477791.2 | AO19: -2665262.675 | AP19: -2933918.08 | AQ19: -3044828.998 | AR19: -2538349.036 | AS19: -3692200.769 | AT19: -1953097.47 | AU19: -2964997.845 | AV19: -2290672.82 | AX19: -2445873.002 | AY19: -2933918.08 | AZ19: -3044828.998 | BA19: -2538349.036 | BB19: -3171636.931 | BC19: -1953097.47 | BD19: -2964997.845 | BE19: -2290672.82
D20: adjustment | E20: -1968638.776 | F20: -309138.4384 | G20: -1933484.921 | H20: 53000 | I20: -171671.0231 | J20: -206404.0686 | K20: -7026890.1 | L20: -18301.2 | N20: -173524.9813 | O20: -1253506.369 | P20: 86069.6715 | Q20: 11000 | R20: 549760.497 | S20: -67871.8836 | T20: -32728.85 | U20: -49986.4 | W20: -173524.9813 | X20: -1253506.369 | Y20: 86069.6715 | Z20: 11000 | AA20: 549760.497 | AB20: -96871.8836 | AC20: -3728.85 | AD20: -49986.4 | AF20: -406955.751 | AG20: -1558710.049 | AH20: -3345.7187 | AI20: 32000 | AJ20: 207905.2105 | AK20: 349334.5536 | AL20: -75119.53 | AM20: -44120.56 | AO20: -100791.9647 | AP20: -1852603.626 | AQ20: 73777.36743 | AR20: 0 | AS20: 28551.46323 | AT20: 193447.6925 | AU20: -87629.6931 | AV20: -32000 | AX20: -100791.9647 | AY20: -1291603.626 | AZ20: 73777.36743 | BA20: 0 | BB20: 407551.4632 | BC20: -185552.105 | BD20: -131866.2112 | BE20: 0
B21: adjustment | C21: adjustment | D21: adjustment | E21: -9500000 | F21: -6900000 | G21: -6200000 | H21: -6100000 | I21: -7200000 | J21: -4400000 | K21: -8400000 | L21: -5100000 | N21: -200000 | O21: -300000 | P21: 1000000 | Q21: -3.278255463e-07 | R21: -300000 | S21: 1300000 | T21: -300000 | U21: 400000 | W21: -200000 | X21: -300000 | Y21: 1000000 | Z21: -3.278255463e-07 | AA21: -300000 | AB21: 1300000 | AC21: -300000 | AD21: 400000 | AF21: 13000 | AG21: -255000 | AH21: 1117000 | AI21: 33000 | AJ21: -317000 | AK21: 1398000 | AL21: -351579.7379 | AM21: 392579.7379 | AO21: -117503.4883 | AP21: -217880.0745 | AQ21: 1035195.181 | AR21: 69713.37019 | AS21: -147797.8049 | AT21: 1470453.748 | AU21: -169988.1126 | AV21: 361182.1349 | AX21: -117503.4883 | AY21: -217880.0745 | AZ21: 1035195.181 | BA21: 69713.37019 | BB21: -147797.8049 | BC21: 1470453.748 | BD21: -169988.1126 | BE21: 361182.1349
B22: Asseco Group | E22: 2938100000 | F22: 2738400000 | G22: 2538700000 | H22: 2452200000 | I22: 2650300000 | J22: 2218400000 | K22: 2310900000 | L22: 2149000000 | N22: 261500000 | O22: 261100000 | P22: 228900000 | Q22: 224700000 | R22: 238100000 | S22: 187600000 | T22: 203800000 | U22: 167300000 | W22: 318882534.2 | X22: 320823252.5 | Y22: 284038461 | Z22: 280652875 | AA22: 302238009.8 | AB22: 246494752.6 | AC22: 264407987 | AD22: 235333201.8 | AF22: 195300000 | AG22: 181500000 | AH22: 169400000 | AI22: 157200000 | AJ22: 184400000 | AK22: 141300000 | AL22: 151400000 | AM22: 116600000 | AO22: 84200000 | AP22: 78500000 | AQ22: 80100000 | AR22: 79600000 | AS22: 98000000 | AT22: 78000000 | AU22: 88400000 | AV22: 68900000 | AX22: 96014307.32 | AY22: 90325408.63 | AZ22: 90316463.23 | BA22: 89573223.7 | BB22: 101831383.4 | BC22: 88291603.33 | BD22: 100121853.3 | BE22: 81170041.63

Sheet wyniki spolek
E1: Przychody ze sprzedaży | N1: Zysk operacyjny | W1: Zysk operacyjny non-IFRS | AF1: Zysk netto 100% | AO1: Zysk netto kontrybucja do Asseco Poland | AX1: Zysk netto kontrybucja do Asseco Poland non-IFRS
E2: Q4 2019 | F2: Q3 2019 | G2: Q2 2019 | H2: Q1 2019 | I2: Q4 2018 | J2: Q3 2018 | K2: Q2 2018 | L2: Q1 2018 | N2: Q4 2019 | O2: Q3 2019 | P2: Q2 2019 | Q2: Q1 2019 | R2: Q4 2018 | S2: Q3 2018 | T2: Q2 2018 | U2: Q1 2018 | W2: Q4 2019 | X2: Q3 2019 | Y2: Q2 2019 | Z2: Q1 2019 | AA2: Q4 2018 | AB2: Q3 2018 | AC2: Q2 2018 | AD2: Q1 2018 | AF2: Q4 2019 | AG2: Q3 2019 | AH2: Q2 2019 | AI2: Q1 2019 | AJ2: Q4 2018 | AK2: Q3 2018 | AL2: Q2 2018 | AM2: Q1 2018 | AO2: Q4 2019 | AP2: Q3 2019 | AQ2: Q2 2019 | AR2: Q1 2019 | AS2: Q4 2018 | AT2: Q3 2018 | AU2: Q2 2018 | AV2: Q1 2018 | AX2: Q4 2019 | AY2: Q3 2019 | AZ2: Q2 2019 | BA2: Q1 2019 | BB2: Q4 2018 | BC2: Q3 2018 | BD2: Q2 2018 | BE2: Q1 2018
B3: Rynek polski | E3: 318500000 | F3: 290100000 | G3: 305100000 | H3: 298600000 | I3: 382200000 | J3: 308200000 | K3: 352100000 | L3: 316300000 | N3: 27500000 | O3: 38200000 | P3: 44100000 | Q3: 43300000 | R3: 47600000 | S3: 52600000 | T3: 64700000 | U3: 55800000 | W3: 31517000 | X3: 42415000 | Y3: 48868000 | Z3: 46963000 | AA3: 52401611.11 | AB3: 57201888.89 | AC3: 68917000 | AD3: 60015000 | AF3: 20997000 | AG3: 25786000 | AH3: 35529000 | AI3: 36046000 | AJ3: 38170000 | AK3: 42641000.25 | AL3: 47387684.99 | AM3: 40102344 | AO3: 19998900.09 | AP3: 24904693.43 | AQ3: 33558061.85 | AR3: 35278168.59 | AS3: 37024006.86 | AT3: 40449367.94 | AU3: 45274107.62 | AV3: 38838820.02 | AX3: 23305010.09 | AY3: 28268693.43 | AZ3: 37655121.85 | BA3: 38245108.59 | BB3: 37137603.95 | BC3: 43380577.79 | BD3: 48799776.92 | BE3: 42233927.18
B4: Asseco Poland (bez dywidend) | E4: 208784000 | F4: 191685000 | G4: 210024000 | H4: 195051000 | I4: 251505000 | J4: 210982000 | K4: 225425000 | L4: 205373000 | N4: 20223000 | O4: 28117000 | P4: 31933000 | Q4: 29061000 | R4: 44687000 | S4: 47506000 | T4: 43215000 | U4: 46308000 | W4: 22731000 | X4: 30825000 | Y4: 34640000 | Z4: 31769000 | AA4: 47397000 | AB4: 50213000 | AC4: 45922000 | AD4: 49016000 | AF4: 16943000 | AG4: 22701000 | AH4: 28206000 | AI4: 24125000 | AJ4: 36002000 | AK4: 40170000 | AL4: 30938000 | AM4: 38885000 | AO4: 16943590.97 | AP4: 22699789.32 | AQ4: 28206840.23 | AR4: 24126272.14 | AS4: 35998889.84 | AT4: 40171489.3 | AU4: 30952157.06 | AV4: 38871445.81 | AX4: 18974700.97 | AY4: 24894789.32 | AZ4: 29609360.23 | BA4: 26319752.14 | BB4: 38193989.43 | BC4: 42381339.35 | BD4: 33205951.2 | BE4: 41021568.13
B5: Asseco Data Systems | C5: Asseco Data Systems PF | D5: Asseco Data Systems PF | E5: 74111000 | F5: 60973000 | G5: 68301000 | H5: 72401000 | I5: 91508000 | J5: 76711000 | K5: 93260000 | L5: 89075000 | N5: 6438000 | O5: 916000 | P5: 8071000 | Q5: 8989000 | R5: 6374000 | S5: 1308000 | T5: 12511000 | U5: 5623000 | W5: 7857000 | X5: 2334000 | Y5: 9491000 | Z5: 10407000 | AA5: 7792000 | AB5: 2725000 | AC5: 13932000 | AD5: 7041000 | AF5: 4971000 | AG5: -2858000 | AH5: 6262000 | AI5: 7819000 | AJ5: 3704000 | AK5: 979000 | AL5: 10087000 | AM5: 4471000 | AO5: 4971000 | AP5: -2858000 | AQ5: 6262000 | AR5: 7819000 | AS5: 3704000 | AT5: 979000 | AU5: 10087000 | AV5: 4471000 | AX5: 6121000 | AY5: -1710000 | AZ5: 7412420 | BA5: 8967580 | BB5: 4852580 | BC5: 2126770 | BD5: 11238010 | BE5: 5619580
B6: Pozostałe | E6: 49022000 | F6: 47596000 | G6: 40737000 | H6: 40260000 | I6: 51071000 | J6: 38749000 | K6: 43634000 | L6: 34999000 | N6: 3889315.355 | O6: 8740946.064 | P6: 4254000 | Q6: 4142000 | R6: 5913000 | S6: 7299000 | T6: 6700000 | U6: 4411000 | W6: 3889315.355 | X6: 8740946.064 | Y6: 4254000 | Z6: 4142000 | AA6: 5913000 | AB6: 7299000 | AC6: 6700000 | AD6: 4411000 | AF6: 2593315.355 | AG6: 5898946.064 | AH6: 2179000 | AI6: 3036000 | AJ6: 4852000 | AK6: 5748000 | AL6: 4613000 | AM6: 2511000 | AO6: 1532753.871 | AP6: 5061823.822 | AQ6: 241995.3038 | AR6: 2230132.103 | AS6: 3770773.463 | AT6: 3189981.882 | AU6: 2583968.304 | AV6: 1166531.266 | AX6: 1534753.871 | AY6: 5061823.822 | AZ6: 241995.3038 | BA6: 2230132.103 | BB6: 3795883.463 | BC6: 3189981.882 | BD6: 2583968.304 | BE6: 1166531.266
D7: korekty | E7: -13417000 | F7: -10154000 | G7: -13962000 | H7: -9112000 | I7: -11884000 | J7: -18242000 | K7: -10219000 | L7: -13147000 | N7: -3050315.355 | O7: 426053.9356 | P7: -158000 | Q7: 1108000 | R7: -9374000 | S7: -3513000 | T7: 2274000 | U7: -542000 | W7: -2960315.355 | X7: 515053.9356 | Y7: 483000 | Z7: 645000 | AA7: -8700388.889 | AB7: -3035111.111 | AC7: 2363000 | AD7: -453000 | AF7: -3510315.355 | AG7: 44053.93556 | AH7: -1118000 | AI7: 1066000 | AJ7: -6388000 | AK7: -4255999.75 | AL7: 1749684.99 | AM7: -5764656 | AO7: -3448444.747 | AP7: 1080.283389 | AQ7: -1152773.682 | AR7: 1102764.348 | AS7: -6449656.442 | AT7: -3891103.24 | AU7: 1650982.252 | AV7: -5670157.058 | AX7: -3325444.747 | AY7: 22080.28339 | AZ7: 391346.3178 | BA7: 727644.3478 | BB7: -9704848.942 | BC7: -4317513.442 | BD7: 1771847.41 | BE7: -5573752.22
B8: Rynek izraelski | E8: 1732500000 | F8: 1768600000 | G8: 1567200000 | H8: 1486100000 | I8: 1488200000 | J8: 1327800000 | K8: 1322900000 | L8: 1263800000 | N8: 123300000 | O8: 135000000 | P8: 109400000 | Q8: 105000000 | R8: 99700000 | S8: 74800000 | T8: 69800000 | U8: 56800000 | W8: 173837776.3 | X8: 187652290.6 | Y8: 156731041.3 | Z8: 154312220.2 | AA8: 155249344.8 | AB8: 126526248.9 | AC8: 123554359.8 | AD8: 118103675.9 | AF8: 81994000 | AG8: 85286000 | AH8: 75224000 | AI8: 60963000 | AJ8: 65893000 | AK8: 44935000 | AL8: 45030678.94 | AM8: 32971321.06 | AO8: 8712423.404 | AP8: 8806254.977 | AQ8: 8857314.729 | AR8: 5952207.628 | AS8: 7869090.088 | AT8: 4273191.918 | AU8: 5155191.379 | AV8: 3352027.306 | AX8: 14771843.56 | AY8: 14330324.1 | AZ8: 13698780.87 | BA8: 11128723.83 | BB8: 14718032.06 | BC8: 10316918.24 | BD8: 11319105.83 | BE8: 10631090.3
B9: Matrix IT | E9: 998489337.6 | F9: 1066891860 | G9: 935449905.1 | H9: 888804243.2 | I9: 885310052 | J9: 765809682.8 | K9: 773974079.7 | L9: 759908192 | N9: 72032917.69 | O9: 75943784.22 | P9: 63016636.19 | Q9: 62884255.45 | R9: 69334136.72 | S9: 50707810.65 | T9: 53170361.63 | U9: 52733426.52 | W9: 78414439.92 | X9: 83105410.71 | Y9: 69441391.73 | Z9: 69610473.66 | AA9: 74626498.96 | AB9: 54447627.93 | AC9: 57451517.06 | AD9: 56373425.07 | AF9: 51907383.71 | AG9: 49026859.63 | AH9: 39682481.85 | AI9: 39895166.82 | AJ9: 44622358.29 | AK9: 31351500.5 | AL9: 34687108.95 | AM9: 34345845.84 | AO9: 6185929.06 | AP9: 5763528.203 | AQ9: 4662835.157 | AR9: 4814369.379 | AS9: 5498629.268 | AT9: 3876789.904 | AU9: 4293513.774 | AV9: 4339318.363 | AX9: 6831457.202 | AY9: 6683084.843 | AZ9: 5514801.167 | BA9: 5602516.477 | BB9: 6562281.789 | BC9: 4841869.986 | BD9: 5310002.299 | BE9: 5025176.544
B10: Magic Software | E10: 349840772.1 | F10: 337158171.4 | G10: 293085764 | H10: 271624575 | I10: 273324710 | J10: 264383788.9 | K10: 256256989 | L10: 236243311.3 | N10: 33826256.86 | O10: 35671641.79 | P10: 30437457 | Q10: 31735307.65 | R10: 31698428.13 | S10: 28269706.46 | T10: 29089081.48 | U10: 25638257.42 | W10: 43709487.52 | X10: 45460698.05 | Y10: 37852031.07 | Z10: 37844798.87 | AA10: 38183396.74 | AB10: 35465706.83 | AC10: 35658794.38 | AD10: 31808108.98 | AF10: 22854916.56 | AG10: 25986436.52 | AH10: 23065808.74 | AI10: 24698989.58 | AJ10: 22962035.05 | AK10: 22487454.28 | AL10: 24685802.79 | AM10: 19614097.03 | AO10: 2062692.374 | AP10: 2289718.732 | AQ10: 2057419.928 | AR10: 2363685.408 | AS10: 2055315.533 | AT10: 2250208.041 | AU10: 2569075.479 | AV10: 1923780.68 | AX10: 3220244.88 | AY10: 3153635.277 | AZ10: 2553219.032 | BA10: 2882327.865 | BB10: 2633755.938 | BC10: 2942704.435 | BD10: 3196527.957 | BE10: 2513230.441
B11: Sapiens Int. | E11: 333644223.8 | F11: 325231382.6 | G11: 302516301.9 | H11: 290482664 | I11: 277241569.9 | J11: 268479678.1 | K11: 263261260.5 | L11: 240546283 | N11: 37138056.15 | O11: 45640974.26 | P11: 37104407.29 | Q11: 32325450.45 | R11: 27176939.1 | S11: 24342058.94 | T11: 17810254.85 | U11: 17547315.34 | W11: 47343498.48 | X11: 56907812.88 | Y11: 47241261.98 | Z11: 43314968.71 | AA11: 39384488.45 | AB11: 35733781.21 | AC11: 30448114.28 | AD11: 29202608.79 | AF11: 26315044.61 | AG11: 31109774.74 | AH11: 24156931.85 | AI11: 20129165.81 | AJ11: 16616487.98 | AK11: 18630461.96 | AL11: 6741688.76 | AM11: 10798087.27 | AO11: 3146533.394 | AP11: 3749456.18 | AQ11: 2931081.514 | AR11: 2488614.14 | AS11: 2062352.506 | AT11: 2350251.507 | AU11: 809498.1944 | AV11: 1364406.99 | AX11: 4359635.299 | AY11: 4857969.546 | AZ11: 3909014.464 | BA11: 3586421.661 | BB11: 3299279.487 | BC11: 3460949.149 | BD11: 2219936.365 | BE11: 2633408.464
B12: Pozostałe | E12: 54229560.63 | F12: 45579125.53 | G12: 42203679.77 | H12: 42059023.77 | I12: 55847848.78 | J12: 35429226.12 | K12: 34170665.01 | L12: 30456230.47 | N12: 3415322.143 | O12: 1051931.601 | P12: 1684324.881 | Q12: 2701038.224 | R12: 1823136.902 | S12: 1199975.389 | T12: -431457.4876 | U12: 491284.1715 | W12: 4448823.357 | X12: 1899161.093 | Y12: 2472363.825 | Z12: 3503818.971 | AA12: 3085152.858 | AB12: 912396.5239 | AC12: -113884.2847 | AD12: 786054.6744 | AF12: -674484.2428 | AG12: -2263184.915 | AH12: 6702910.659 | AI12: -4176395.237 | AJ12: 6622274.695 | AK12: -3118269.785 | AL12: 3164076.18 | AM12: 189737.3352 | AO12: -250541.5485 | AP12: -606090.015 | AQ12: 1650469.064 | AR12: -1127044.332 | AS12: 1694267.99 | AT12: -829839.9113 | AU12: 837837.4507 | AV12: 49115.61364 | AX12: 380641.1927 | AY12: -443239.2921 | AZ12: 1803542.155 | BA12: -968069.8651 | BB12: 2247552.852 | BC12: -913853.8777 | BD12: 916192.4039 | BE12: 115588.3576
B13: korekta konsolidacyjna | E13: -3703894.143 | F13: -6260539.448 | G13: -6055650.654 | H13: -6870505.955 | I13: -3524180.631 | J13: -6302375.916 | K13: -4762994.178 | L13: -3354016.8 | N13: -23112552.84 | O13: -23308331.87 | P13: -22842825.36 | Q13: -24646051.78 | R13: -30332640.86 | S13: -29719551.44 | T13: -29838240.48 | U13: -39610283.45 | W13: -78472.97153 | X13: 279207.8355 | Y13: -276007.2944 | Z13: 38159.98939 | AA13: -30192.207 | AB13: -33263.6187 | AC13: 109818.3568 | AD13: -66521.6045 | AF13: -18408860.63 | AG13: -18573885.97 | AH13: -18384133.09 | AI13: -19583926.98 | AJ13: -24930156.02 | AK13: -24416146.95 | AL13: -24247997.74 | AM13: -31976446.41 | AO13: -2432189.876 | AP13: -2390358.123 | AQ13: -2444490.934 | AR13: -2587416.968 | AS13: -3441475.208 | AT13: -3374217.622 | AU13: -3354733.519 | AV13: -4324594.341 | AX13: -20135.01102 | AY13: 78873.72776 | AZ13: -81795.94745 | BA13: 25527.69077 | BB13: -24838.01136 | BC13: -14751.44766 | BD13: -323553.1999 | BE13: 343686.4895
B14: Inne rynki międzynarodowe | E14: 896600000 | F14: 686600000 | G14: 672600000 | H14: 673600000 | I14: 787100000 | J14: 586800000 | K14: 644300000 | L14: 574000000 | N14: 110900000 | O14: 88200000 | P14: 74400000 | Q14: 76400000 | R14: 91100000 | S14: 58900000 | T14: 69600000 | U14: 54300000 | W14: 113727757.9 | X14: 91055961.96 | Y14: 77439419.69 | Z14: 79377654.77 | AA14: 94887053.9 | AB14: 61466614.83 | AC14: 72236627.2 | AD14: 56814525.93 | AF14: 92296000 | AG14: 70683000 | AH14: 57530000 | AI14: 60158000 | AJ14: 80654000 | AK14: 52325999.75 | AL14: 59333215.81 | AM14: 43133755.2 | AO14: 55606179.99 | AP14: 45006931.67 | AQ14: 36649428.24 | AR14: 38299910.41 | AS14: 53254700.86 | AT14: 31806986.39 | AU14: 38140689.12 | AV14: 26347970.54 | AX14: 58054957.15 | AY14: 47944271.18 | AZ14: 37927365.33 | BA14: 40129677.91 | BB14: 50123545.19 | BC14: 33123653.55 | BD14: 40172958.66 | BE14: 27943842.03
C15: Rynek środkowoeurop. | E15: 403211812.6 | F15: 295402297.3 | G15: 315722979.1 | H15: 319965093.5 | I15: 355493822.5 | J15: 278464465.4 | K15: 306810471.4 | L15: 272268722.4 | N15: 60006358.04 | O15: 48198238.28 | P15: 44591829.69 | Q15: 44882273.15 | R15: 52965473.62 | S15: 35683895.47 | T15: 39714131.25 | U15: 32716872 | W15: 60710351.92 | X15: 49104832.51 | Y15: 45310689.8 | Z15: 45681274.26 | AA15: 54572172.3 | AB15: 36165351.5 | AC15: 40200795.8 | AD15: 33180516.39 | AF15: 50146177.79 | AG15: 37607556.94 | AH15: 35347429.92 | AI15: 35216446.06 | AJ15: 49498521.03 | AK15: 28818292.01 | AL15: 30034723.65 | AM15: 24251433.6 | AO15: 32113971.02 | AP15: 27190610.78 | AQ15: 25590339.96 | AR15: 25210862.51 | AS15: 35116908.49 | AT15: 19976276.55 | AU15: 20967071.34 | AV15: 15849945.54 | AX15: 32453269.17 | AY15: 27823519.03 | AZ15: 26231760.72 | BA15: 25731806.89 | BB15: 29359731.06 | BC15: 20238713.94 | BD15: 21540272.06 | BE15: 16032404.27
C16: Rynek południowo-wschodniej Europy | E16: 275797340.8 | F16: 228834687 | G16: 198384469.2 | H16: 187076182.9 | I16: 261490760.7 | J16: 173909809.4 | K16: 183755656.2 | L16: 156138451.2 | N16: 34787537.9 | O16: 29345537.8 | P16: 22562279.15 | Q16: 21364359.67 | R16: 26719237.8 | S16: 19447109.62 | T16: 18823988.5 | U16: 13409180 | W16: 35599991.17 | X16: 30130583.69 | Y16: 23881732.13 | Z16: 22537320.33 | AA16: 27891700.41 | AB16: 20559389.61 | AC16: 19938634.15 | AD16: 14482315.94 | AF16: 28237718.63 | AG16: 24661683.6 | AH16: 18238050.73 | AI16: 18348450.36 | AJ16: 21352211.92 | AK16: 18805958.24 | AL16: 16113672.65 | AM16: 11557975.2 | AO16: 14356470.21 | AP16: 12520556.83 | AQ16: 9061518.55 | AR16: 9209143.18 | AS16: 10991226.86 | AT16: 9586954.823 | AU16: 8281768.204 | AV16: 5872741.388 | AX16: 15008936.55 | AY16: 12924768.84 | AZ16: 8646535.018 | BA16: 9839457.837 | BB16: 11597289.72 | BC16: 10166609.33 | BD16: 8862682.555 | BE16: 6432126.532
B17: Rynek zachodniooeuropejski | E17: 215102554.1 | F17: 161073405.5 | G17: 156649012.5 | H17: 163936458.3 | I17: 168886672.8 | J17: 131496770.3 | K17: 155543111.3 | L17: 144236434 | N17: 17560790.26 | O17: 14836708.45 | P17: 10223366.66 | Q17: 12773330.23 | R17: 14635022.73 | S17: 6120649.518 | T17: 13227148.75 | U17: 11132100.8 | W17: 18872100.98 | X17: 16001030.3 | Y17: 11224473.25 | Z17: 13779023.23 | AA17: 15642915.34 | AB17: 7122528.334 | AC17: 14233465.75 | AD17: 12109846.4 | AF17: 12682445.21 | AG17: 13331893.06 | AH17: 8177801.134 | AI17: 11053027.25 | AJ17: 13403554.39 | AK17: 5953954.835 | AL17: 15062699.4 | AM17: 11382232 | AO17: 8767308.353 | AP17: 10160598.87 | AQ17: 5943807.93 | AR17: 8235524.331 | AS17: 10211690.13 | AT17: 3747467.25 | AU17: 11167388.33 | AV17: 8209680.37 | AX17: 9674757.418 | AY17: 11161881.21 | AZ17: 6672706.288 | BA17: 8788788.328 | BB17: 11022319.81 | BC17: 4290049.163 | BD17: 11725819.86 | BE17: 8745739.173
B18: Rynek wschodnioeuropejski | E18: 1410823.41 | F18: 1372794.735 | G18: 1645179.421 | H18: 2505636.814 | I18: 1062771.089 | J18: 2315919.845 | K18: 2168475.75 | L18: 1015351.2 | N18: 273837.1216 | O18: 163097.2417 | P18: 578453.2955 | Q18: 189104.6652 | R18: 51727.1175 | S18: 237956.2842 | T18: 408445.35 | U18: -480516 | W18: 273837.1216 | X18: 163097.2417 | Y18: 578453.2955 | Z18: 189104.6652 | AA18: 51727.1175 | AB18: 237956.2842 | AC18: 408445.35 | AD18: -480516 | AF18: 3445511.831 | AG18: -192451.3142 | AH18: -677877.2947 | AI18: -1719133.32 | AJ18: 588364.1431 | AK18: 431932.927 | AL18: 955169.19 | AM18: -1535973.84 | AO18: 3134485.047 | AP18: -78313.09589 | AQ18: -975186.5737 | AR18: -1817270.574 | AS18: 598524.6894 | AT18: 255937.5442 | AU18: 777088.7792 | AV18: -1261723.931 | AX18: 3464658.977 | AY18: 259623.8058 | AZ18: -652585.0733 | BA18: -1692026.115 | BB18: 908290.0719 | BC18: 566930.6899 | BD18: 1141048.243 | BE18: -975755.1233
B19: Pozostałe spółki | E19: 3046107.837 | F19: 225953.9122 | G19: 2131844.66 | H19: 63628.3901 | I19: 337643.9358 | J19: 819439.1332 | K19: 3049175.4 | L19: 359342.4 | N19: -1554998.339 | O19: -3090075.408 | P19: -3641998.464 | Q19: -2820067.719 | R19: -3821221.766 | S19: -2521739.006 | T19: -2540985 | U19: -2427650.4 | W19: -1554998.339 | X19: -3090075.408 | Y19: -3641998.464 | Z19: -2820067.719 | AA19: -3821221.766 | AB19: -2521739.006 | AC19: -2540985 | AD19: -2427650.4 | AF19: -1808897.707 | AG19: -3166972.229 | AH19: -3552058.772 | AI19: -2772790.346 | AJ19: -4396556.698 | AK19: -2033472.81 | AL19: -2757929.55 | AM19: -2477791.2 | AO19: -2665262.675 | AP19: -2933918.08 | AQ19: -3044828.998 | AR19: -2538349.036 | AS19: -3692200.769 | AT19: -1953097.47 | AU19: -2964997.845 | AV19: -2290672.82 | AX19: -2445873.002 | AY19: -2933918.08 | AZ19: -3044828.998 | BA19: -2538349.036 | BB19: -3171636.931 | BC19: -1953097.47 | BD19: -2964997.845 | BE19: -2290672.82
D20: korekty | E20: -1968638.776 | F20: -309138.4384 | G20: -1933484.921 | H20: 53000 | I20: -171671.0231 | J20: -206404.0686 | K20: -7026890.1 | L20: -18301.2 | N20: -173524.9813 | O20: -1253506.369 | P20: 86069.6715 | Q20: 11000 | R20: 549760.497 | S20: -67871.8836 | T20: -32728.85 | U20: -49986.4 | W20: -173524.9813 | X20: -1253506.369 | Y20: 86069.6715 | Z20: 11000 | AA20: 549760.497 | AB20: -96871.8836 | AC20: -3728.85 | AD20: -49986.4 | AF20: -406955.751 | AG20: -1558710.049 | AH20: -3345.7187 | AI20: 32000 | AJ20: 207905.2105 | AK20: 349334.5536 | AL20: -75119.53 | AM20: -44120.56 | AO20: -100791.9647 | AP20: -1852603.626 | AQ20: 73777.36743 | AR20: 0 | AS20: 28551.46323 | AT20: 193447.6925 | AU20: -87629.6931 | AV20: -32000 | AX20: -100791.9647 | AY20: -1291603.626 | AZ20: 73777.36743 | BA20: 0 | BB20: 407551.4632 | BC20: -185552.105 | BD20: -131866.2112 | BE20: 0
B21: Korekta konsolidacyjna | E21: -9500000 | F21: -6900000 | G21: -6200000 | H21: -6100000 | I21: -7200000 | J21: -4400000 | K21: -8400000 | L21: -5100000 | N21: -200000 | O21: -300000 | P21: 1000000 | Q21: -3.278255463e-07 | R21: -300000 | S21: 1300000 | T21: -300000 | U21: 400000 | W21: -200000 | X21: -300000 | Y21: 1000000 | Z21: -3.278255463e-07 | AA21: -300000 | AB21: 1300000 | AC21: -300000 | AD21: 400000 | AF21: 13000 | AG21: -255000 | AH21: 1117000 | AI21: 33000 | AJ21: -317000 | AK21: 1398000 | AL21: -351579.7379 | AM21: 392579.7379 | AO21: -117503.4883 | AP21: -217880.0745 | AQ21: 1035195.181 | AR21: 69713.37019 | AS21: -147797.8049 | AT21: 1470453.748 | AU21: -169988.1126 | AV21: 361182.1349 | AX21: -117503.4883 | AY21: -217880.0745 | AZ21: 1035195.181 | BA21: 69713.37019 | BB21: -147797.8049 | BC21: 1470453.748 | BD21: -169988.1126 | BE21: 361182.1349
B22: Grupa Asseco | E22: 2938100000 | F22: 2738400000 | G22: 2538700000 | H22: 2452200000 | I22: 2650300000 | J22: 2218400000 | K22: 2310900000 | L22: 2149000000 | N22: 261500000 | O22: 261100000 | P22: 228900000 | Q22: 224700000 | R22: 238100000 | S22: 187600000 | T22: 203800000 | U22: 167300000 | W22: 318882534.2 | X22: 320823252.5 | Y22: 284038461 | Z22: 280652875 | AA22: 302238009.8 | AB22: 246494752.6 | AC22: 264407987 | AD22: 235333201.8 | AF22: 195300000 | AG22: 181500000 | AH22: 169400000 | AI22: 157200000 | AJ22: 184400000 | AK22: 141300000 | AL22: 151400000 | AM22: 116600000 | AO22: 84200000 | AP22: 78500000 | AQ22: 80100000 | AR22: 79600000 | AS22: 98000000 | AT22: 78000000 | AU22: 88400000 | AV22: 68900000 | AX22: 96014307.32 | AY22: 90325408.63 | AZ22: 90316463.23 | BA22: 89573223.7 | BB22: 101831383.4 | BC22: 88291603.33 | BD22: 100121853.3 | BE22: 81170041.63

Sheet RevenuesAndCosts
A1: Przychody ze sprzedaży | B1: Sales revenues | C1: Q4 2019 | D1: Q3 2019 | E1: Q2 2019 | F1: Q1 2019 | G1: Q4 2018 | H1: Q3 2018 | I1: Q2 2018 | J1: Q1 2018
C2: mln PLN | D2: mln PLN | E2: mln PLN | F2: mln PLN | G2: mln PLN | H2: mln PLN | I2: mln PLN | J2: mln PLN
A4: Przychody ze sprzedaży według rodzaju | B4: Sales revenues by type of products
A5: Oprogramowanie i usługi własne | B5: Proprietary software and services | C5: 2328 | D5: 2245.9 | E5: 2092.8 | F5: 1981.2 | G5: 2051 | H5: 1853.5 | I5: 1871.3 | J5: 1729
A6: Oprogramowanie i usługi obce | B6: Third-party software and services | C6: 230.4 | D6: 193.4 | E6: 183.4 | F6: 174.9 | G6: 235.3 | H6: 127.4 | I6: 169.1 | J6: 145.6
A7: Sprzęt i infrastruktura | B7: Hardware and infrastructure | C7: 379.7 | D7: 299.1 | E7: 262.5 | F7: 296.1 | G7: 364 | H7: 237.5 | I7: 270.5 | J7: 274.4
A8: Razem | B8: Total | C8: =SUM(C5:C7) -> 2938.1 | D8: 2738.4 | E8: 2538.7 | F8: 2452.2 | G8: 2650.3 | H8: 2218.4 | I8: 2310.9 | J8: 2149
A10: Przychody ze sprzedaży według sektorów | B10: Sales revenues by sectors
A11: Bankowość i finanse | B11: Banking and finance | C11: 1076.5 | D11: 1004.4 | E11: 1023.4 | F11: 957.3 | G11: 1041 | H11: 930.6 | I11: 901.6 | J11: 820
A12: Przedsiębiorstwa | B12: General business | C12: 1127.9 | D12: 1093.9 | E12: 921.8 | F12: 921 | G12: 947.3 | H12: 806.9 | I12: 934.6 | J12: 860.5
A13: Instytucje Publiczne | B13: Public Institutions | C13: 733.7 | D13: 640.1 | E13: 593.5 | F13: 573.9 | G13: 662 | H13: 480.9 | I13: 474.7 | J13: 468.5
A14: Razem | B14: Total | C14: =SUM(C11:C13) -> 2938.1 | D14: 2738.4 | E14: 2538.7 | F14: 2452.2 | G14: 2650.3 | H14: 2218.4 | I14: 2310.9 | J14: 2149
A16: Struktura kosztów operacyjnych | B16: Operating costs
A17: Wartość odsprzedanych towarów, materiałów i usług obcych (COGS) | B17: Cost of goods, materials and third-party services sold | C17: -505.1 | D17: -425.8 | E17: -363.6 | F17: -400.7 | G17: -478.2 | H17: -319.1 | I17: -365.3 | J17: -362.5
A18: Świadczenia na rzecz pracowników | B18: Employee benefits | C18: -1386.9 | D18: -1337.8 | E18: -1309.9 | F18: -1226.1 | G18: -1246.8 | H18: -1111 | I18: -1132.5 | J18: -1081
A19: Amortyzacja | B19: Depreciation and amortization | C19: -166.3 | D19: -162.2 | E19: -156.5 | F19: -142.2 | G19: -114.1 | H19: -111 | I19: -110.9 | J19: -115.1
A20: Usługi obce | B20: External services | C20: -436.2 | D20: -390.3 | E20: -333.5 | F20: -320.3 | G20: -362.6 | H20: -312.7 | I20: -315.5 | J20: -276.2
A21: Pozostałe | B21: Other | C21: -178.8 | D21: -160.7 | E21: -143.8 | F21: -133.2 | G21: -204.3 | H21: -176.6 | I21: -180.9 | J21: -143.1
A22: Razem | B22: Total | C22: =SUM(C17:C21) -> -2673.3 | D22: -2476.8 | E22: -2307.3 | F22: -2222.5 | G22: -2406 | H22: -2030.4 | I22: -2105.1 | J22: -1977.9

Sheet PL (no MSSF 16)
A1: P&L (Grupa Asseco) | B1: P&L (Asseco Group) | C1: Q4 2019 | D1: Q3 2019 | E1: Q2 2019 | F1: Q1 2019
C4: mln PLN | D4: mln PLN | E4: mln PLN | F4: mln PLN
A6: Działalność kontynuowana | B6: Continuing operations
A7: Przychody ze sprzedaży | B7: Sales revenues | C7: 2938.1 | D7: 2738.4 | E7: 2538.7 | F7: 2452.2
A9: Koszt własny sprzedaży (-) | B9: Cost of sales | C9: -2308.9 | D9: -2144.8 | E9: -1989.3 | F9: -1923.4
A10: Korekta z tytułu MSSF 16 | B10: Adjustment due to IFRS 16 | C10: -0.3 | D10: -2.4 | E10: -2.6 | F10: -3.5
A12: Zysk brutto ze sprzedaży | B12: Gross profit on sales | C12: =SUM(C7:C10) -> 628.9 | D12: =SUM(D7:D10) -> 591.2 | E12: =SUM(E7:E10) -> 546.8 | F12: =SUM(F7:F10) -> 525.3
A14: Koszty sprzedaży (-) | B14: Selling costs | C14: -158 | D14: -147.3 | E14: -132.8 | F14: -130.2
A15: Koszty ogólnego zarządu (-) | B15: General administrative expenses | C15: -206.4 | D15: -184.7 | E15: -185.2 | F15: -168.9
A16: Korekta z tytułu MSSF 16 | B16: Adjustment due to IFRS 16 | C16: 0 | D16: -0.4 | E16: -0.2 | F16: -0.1
A18: Zysk netto ze sprzedaży | B18: Net profit on sales | C18: =SUM(C12,C14:C16) -> 264.5 | D18: =SUM(D12,D14:D16) -> 258.8 | E18: =SUM(E12,E14:E16) -> 228.6 | F18: 226.1
A20: Pozostałe przychody operacyjne | B20: Other operating income | C20: 10.8 | D20: 11.3 | E20: 7.1 | F20: 11.9
A21: Pozostałe koszty operacyjne (-) | B21: Other operating expenses | C21: -14.1 | D21: -11.8 | E21: -9.6 | F21: -16.9
A23: Zysk z działalności operacyjnej | B23: Operating profit | C23: =SUM(C18:C21) -> 261.2 | D23: =SUM(D18:D21) -> 258.3 | E23: =SUM(E18:E21) -> 226.1 | F23: =SUM(F18:F21) -> 221.1
A25: Działalność finansowa | B25: Financial activity | C25: -22.5 | D25: -30 | E25: -11 | F25: -24.6
A26: Korekta z tytułu MSSF 16 | B26: Adjustment due to IFRS 16 | C26: 4.8 | D26: 7.2 | E26: 7.4 | F26: 4.1
A28: Zysk przed opodatkowaniem i udziałem w wynikach jednostek stowarzyszonych | B28: Pre-tax profit and share in profits of associates | C28: =SUM(C22:C26) -> 243.5 | D28: =SUM(D22:D26) -> 235.5 | E28: =SUM(E22:E26) -> 222.5 | F28: =SUM(F22:F26) -> 200.6
A30: Podatek dochodowy | B30: Corporate income tax | C30: -48.2 | D30: -50.8 | E30: -48.2 | F30: -43.8
A31: Udział w wynikach jednostek stowarzyszonych | B31: Share in profits of associates | C31: 4.5 | D31: 1.2 | E31: -0.3 | F31: 0.9
A32: Korekta z tytułu MSSF 16 | B32: Adjustment due to IFRS 16 | C32: -1.3 | D32: -1.4 | E32: 0.1 | F32: -0.1
A34: Zysk z działalności kontynuowanej za okres sprawozdawczy | B34: Net profit for the period from continuing operations | C34: =SUM(C28,C30:C32) -> 198.5 | D34: =SUM(D28,D30:D32) -> 184.5 | E34: =SUM(E28,E30:E32) -> 174.1 | F34: =SUM(F28,F30:F32) -> 157.6
A36: Działalność zaniechana | B36: Discontinued operations
A37: Zysk z działalności zaniechanej za okres sprawozdawczy | B37: Net profit for the period from discontinued operations | C37: 0 | D37: 0 | E37: 0 | F37: 0
A39: Zysk za okres sprawozdawczy | B39: Net profit for the reporting period | C39: =C34 -> 198.5 | D39: =D34 -> 184.5 | E39: =E34 -> 174.1 | F39: =F34 -> 157.6
A40: Przypadający: | B40: Attributable to:
A41: Akcjonariuszom Jednostki Dominującej | B41: Shareholders of the Parent Company | C41: =C39-C42-C43 -> 84.8 | D41: =D39-D42-D43 -> 79.8 | E41: =E39-E42-E43 -> 81.6 | F41: =F39-F42-F43 -> 80
A42: Udziałowcom niekontrolującym | B42: Non-controling interests | C42: 111.1 | D42: 103 | E42: 89.3 | F42: 77.6
A43: Korekta z tytułu MSSF 16 | B43: Adjustment due to IFRS 16 | C43: 2.6 | D43: 1.7 | E43: 3.2 | F43: 0

Sheet CF (no MSSF 16)
A1: Rachunek przepływów pieniężnych (Grupa Asseco) | B1: Statement of cash flows (Asseco Group)
C2: Q1-Q4 2019
C4: mln PLN
A6: Przepływy środków pieniężnych z działalności operacyjnej | B6: Cash flows - operating activities
A7: Zysk przed opodatkowaniem i udziałem w wynikach jednostek stowarzyszonych i wspólnych przedsięwzięć | B7: Profit before tax and share of profits of associates and joint ventures | C7: 888.1
A8: Korekta zysku brutto z tytułu wdrożenia MSSF 16 | B8: Adjustment of gross profit from the implementation of IFRS 16 | C8: 14
A10: Korekty o pozycje: | B10: Total adjustments: | C10: =SUM(C11:C27) -> 672.8
A11: Amortyzacja | B11: Depreciation and amortization | C11: 635.4
A12: Korekta amortyzacji z tytułu wdrożenia MSSF 16 | B12: Adjustment of depreciation due to the implementation of IFRS 16 | C12: -185.3
A13: Zmiany stanu kapitału pracującego (szczegóły poniżej) | B13: Changes in working capital (see below) | C13: 130.3
A14: Przychody/koszty z tytułu odsetek | B14: Interest income/expenses | C14: 83.7
A15: Korekta odsetek z tytułu wdrożenia MSSF 16 | B15: Adjustment of interest due to the implementation of IFRS 16 | C15: -23.5
A16: Przychody/koszty z różnic kursowych | B16: Gain/loss on foreign exchange differences | C16: 3.2
A17: Przychody/koszty z tytułu aktywów finansowych [1] | B17: Gain/loss on financial assets [1] | C17: -4.7
A18: Pozostałe przychody/koszty finansowe | B18: Other financial income/expenses | C18: 15.7
A19: Zysk na utracie kontroli nad spółkami zależnymi | B19: Gain on lose of control over subsidiaries | C19: 0
A20: Odpis z tytułu utraty wartości firmy | B20: Write-off of consolidated goodwill | C20: 0
A21: Zyski/straty na sprzedaży rzeczowych AT i WN [2] | B21: Gain/loss on disposal of PPE and IA [2] | C21: -2.7
A22: Zysk na sprzedaży spółki zależnej | B22: Gain on disposal of subsidiary | C22: 0
A23: Zysk na sprzedaży działalności zaniechanej | B23: Gain on disposal of discontinued operations | C23: 0
A24: Koszty trans. z pracownikami rozliczanych w formie instr. kapitałowych | B24: Costs of equity-settled employee payment transactions | C24: 16.6
A25: Odpis aktualizujący wartości niematerialne, rzeczowe aktywa trwałe i nieruchomości inwestycyjne | B25: Impairment of intangible and tangible fixed assets and investment property
A26: Zyski/straty z tytułu likwidacji rzeczowych aktywów trwałych i wartości niematerialnych | B26: Profit / loss on liquidation of FA and IA | C26: 3.9
A27: Pozostałe korekty zysku brutto | B27: Other pre-tax profit adjustments | C27: 0.2
A28: Środki pieniężne netto wygenerowane z działalności operacyjnej | B28: Cash generated from operating activities | C28: =C10+C7+C8 -> 1574.9
A29: Zapłacony podatek dochodowy | B29: Corporate income tax paid | C29: -268.4
A30: Środki pieniężne netto z działalności operacyjnej | B30: Net cash provided by (used in) operating activities | C30: =C28+C29 -> 1306.5
A32: Przepływy środków pieniężnych z działalności inwestycyjnej | B32: Cash flows – investing activities
A33: Wpływy ze sprzedaży rzeczowych AT i WN [2] oraz NI [6] | B33: Disposal of PPE and IA [2] and IP [6] | C33: 28.2
A34: Nabycie rzeczowych AT i WN [2] oraz NI [6] | B34: Acquisition of PPE and IA [2] | C34: -319.7
A35: Wydatki z tytułu nabycia jedn. zależnych i stowarzyszonych | B35: Expenditures for the acquisition of subsidiaries and associates | C35: -328.2
A36: Środki pieniężne i ich ekwiwalenty w nabytych jednostkach zależnych | B36: Cash and cash equivalents in subsidiaries acquired
A37: Wpływy ze sprzedaży akcji/udziałów w jednostkach powiązanych | B37: Proceeds from sale of investment in subsidiaries | C37: 12.5
A38: Środki pieniężne i ich ekwiwalenty w sprzedanych jednostkach zależnych (działalność zaniechana) | B38: Cash and cash equivalents in subsidiaries disposed of (discontinued operations) | C38: 0
A39: Wpływy ze sprzedaży/rozliczenia aktywów finansowych [3] / [7] | B39: Disposal/settlement of financial assets [3] / [7] | C39: 13.1
A40: Wydatki na nabycie/wydatki z tytułu rozliczenia aktywów finansowych [4] / [8] | B40: Acquisition/settlement of financial assets [4] / [8] | C40: -90.3
A41: Środki pieniężne i ich ekwiwalenty w sprzedanych jednostkach zależnych (działalność zaniechana) | C41: 0
A42: Wpływ ze sprzedaży pozostałych instrumentów dłużnych [9] | B42: Disposal of other debt instruments [9] | C42: 6.6
A43: Wydatki na nabycie inwestycji w instrumenty dłużne [10] | B43: Acquisition of ivestments in debt instruments measured at amortised cost [10] | C43: -16.2
A44: Wpływ ze sprzedaży pozostałych aktywów finansowych | B44: Proceeds from sale of other financial assets | C44: 0
A45: Pożyczki udzielone | B45: Loans granted | C45: -37
A46: Pożyczki spłacone | B46: Loans collected | C46: 61
A47: Otrzymane odsetki | B47: Interest received | C47: 9.2
A48: Dywidendy otrzymane | B48: Dividends received | C48: 1.6
A49: Pozostałe przepływy z działalności inwestycyjnej | B49: Other cash flows from investing activities | C49: -10.5
A50: Środki pieniężne netto wykorzystane w działalności inwestycyjnej | B50: Net cash provided by (used in) investing activities | C50: =SUM(C33:C49) -> -669.7
A52: Przepływy środków pieniężnych z działalności finansowej | B52: Cash flows – financing activities
A53: Wpływ z tytułu emisji kapitału | B53: Proceeds from issue of capital | C53: 0
A54: Wpływy z realizacji programu opcji pracowniczych | B54: Proceeds from share-based payments | C54: 5.6
A55: Wydatki z tytułu nabycia udziałów niekontrolujących | B55: Acquisition of non-controlling interests | C55: -29
A56: Wpływy z tytułu zaciągnięcia pożyczek/kredytów | B56: Proceeds from bank loans and borrowings | C56: 555.3
A57: Wpływy z tytułu emisji dłużnych papierów wartościowych | B57: Proceeds from the issuance of debt securities | C57: 320.9
A58: Wykup dłużnych papierów wartościowych | B58: Repayment/redemption of debt securities | C58: -119.3
A59: Spłata pożyczek/kredytów | B59: Repayment of bank loans and borrowings | C59: -439.1
A60: Spłata zobowiązań z tytułu leasingu finansowego | B60: Finance lease liabilities paid | C60: -206.5
A61: Korekta zobowiązania z tytułu leasingu finasnowego z tytułu wdrożenia MSSF 16 | B61: Adjustment of the financial leasing liability due to the implementation of IFRS 16 | C61: 171.3
A62: Zapłacone odsetki | B62: Interest paid | C62: -83.5
A63: Korekta odsetek z tytułu wdrożenia MSSF 16 | B63: Adjustment of interest due to the implementation of IFRS 16 | C63: 23.5
A64: Dywidendy wypłacone przez Jednostkę Dominującą | B64: Dividends paid out to the shareholders of Parent Company | C64: -254.8
A65: Dywidendy wypłacone dla udziałowców niekontrolujących | B65: Dividends paid out to non-controlling interests | C65: -251.4
A66: Dotacje otrzymane [5] | B66: Grants received [5] | C66: 5.1
A67: Dotacje zwrócone | B67: Grants returned
A68: Pozostałe przepływy z działalności finansowej | B68: Other cash flows from financing activities
A69: Środki pieniężne netto z działalności finansowej | B69: Net cash provided by (used in) financing activities | C69: =SUM(C53:C68) -> -301.9
A71: Zwiększenie/Zmniejszenie netto stanu środków pieniężnych i ich ekwiwalentów | B71: Net increase (decrease) in cash and cash equivalents | C71: =C30+C50+C69 -> 334.9
A73: Różnice kursowe netto | B73: Net foreign exchange differences | C73: 15.8
A74: Środki pieniężne i ich ekwiwalenty netto na dzień 1 stycznia | B74: Cash and cash equivalents at 1 January | C74: 1767.5
A75: Środki pieniężne i ich ekwiwalenty netto na dzień 31 grudnia | B75: Cash and cash equivalents at 31 December | C75: 2118.2
C76: =C74+C73+C71-C75 -> 0
C77: 0
A78: Zmiany stanu kapitału pracującego | B78: Changes in working capital
C79: =C2 -> Q1-Q4 2019
C81: =C4 -> mln PLN
A82: Zmiana stanu zapasów | B82: Change in inventories | C82: -21.5
A83: Zmiana stanu należności i aktywów niefinansowych | B83: Change in receivables and non-financial assets | C83: 85.3
A84: Zmiana stanu zobowiązań | B84: Change in liabilities | C84: 58.3
A85: Zmiana stanu rozliczeń międzyokresowych | B85: Change in prepayments and accruals | C85: 20.5
A86: Zmiana stanu rezerw | B86: Change in provisions | C86: -2.9
A87: Zmiana stanu pozostałe | B87: Change in restricted cash | C87: -9.4
C88: =ROUND(SUM(C82:C87),1) -> 130.3
C89: =C88-C13 -> 0
A90: Objaśnienia: | B90: Legend:
A91: [1] Przychody/koszty z tytułu aktywów finansowych (wycena; sprzedaż; utrata wartości itp) | B91: [1] Gain/loss on financial assets (valuation, disposal, impairment, etc.)
A92: [2] AT i WN - aktywów trwałych i wartości niematerialnych | B92: [2] PPE and IA - property, plant and equipment and intangible assets
A93: [3] Wpływy ze sprzedaży/rozliczenia akt. finansowych . wycenianych w wart. godz. przez wynik finansowy | B93: [3] Disposal/settlement of financial assets carried at fair value through profit or loss
A94: [4] Wydatki na nabycie/wydatki z tytułu rozliczenia akt. fin. wycenianych w wart. godz. przez wynik finansowy | B94: [4] Acquisition/settlement of financial assets carried at fair value through profit or loss
A95: [5] Dotacje otrzymane do zakupu środków trwałych lub/i projektów rozwojowych | B95: [5] Grants received for purchases of property, plant and equipment and/or development projects
A96: [6] NI - nieruchomości inwestycyjnych | B96: [6] IP - investment property
A97: [7] Wpływy ze sprzedaży aktywów finansowych wycenianych w wartości godziwej przez pozostałe dochody całkowite | B97: [7] Proceeds from disposal of financial assets valued at fair value through other comprehensive income
A98: [8] Nabycie aktywów finansowych wycenianych w wartości godziwej przez pozostałe dochody całkowite | B98: [8] Purchase of financial assets valued at fair value through other comprehensive income
A99: [9] Wpływ ze sprzedaży inwestycji w pozostałe instrumenty dłużne wyceniane w zamortyzowanym koszcie | B99: [9] Disposal of other debt instruments carried valued at amortized cost
A100: [10] Nabycie inwestycji w pozostałe instrumenty dłużne wyceniane w zamortyzowanym koszcie | B100: [10] Acquisition of investment in other debt instruments valued at amortized cost

Sheet Exchange Rates
A1: Kursy walut | B1: Exchange rates
A3: Waluta | B3: Currency | C3: EUR/PLN | D3: USD/PLN | E3: NIS/PLN | F3: RUB/PLN
A5: Kurs średni 2014 | B5: Average exchange rate 2014 | C5: 4.1893 | D5: 3.1784 | E5: 0.8846 | F5: 0.0821
A6: Kurs otwarcia 2014 | B6: Opening exchange rate 2014 | C6: 4.1472 | D6: 3.012 | E6: 0.8678 | F6: 0.0914
A7: Kurs zamknięcia 2014 | B7: Closing exchange rate 2014 | C7: 4.2623 | D7: 3.5072 | E7: 0.9018 | F7: 0.0602
A9: Kurs otwarcia 2015 | B9: Opening exchange rate 2015 | C9: 4.2623 | D9: 3.5072 | E9: 0.9018 | F9: 0.0602
A10: Kurs średni Q1 2015 | B10: Average exchange rate Q1 2015 | C10: 4.1489 | D10: 3.7436 | E10: 0.9462 | F10: 0.06
A11: Kurs zamknięcia Q1 2015 | B11: Closing exchange rate Q1 2015 | C11: 4.089 | D11: 3.8125 | E11: 0.9579 | F11: 0.0661
A13: Kurs średni Q1-Q2 2015 | B13: Average exchange rate Q1-2 2015 | C13: 4.1341333 | D13: 3.7268667 | E13: 0.9566667 | F13: 0.06485
A14: Kurs zamknięcia Q2 2015 | B14: Closing exchange rate Q2 2015 | C14: 4.1944 | D14: 3.7645 | E14: 0.9985 | F14: 0.0676
A16: Kurs średni Q1-Q3 2015 | B16: Average exchange rate Q1-Q3 2015 | C16: 4.1585111 | D16: 3.7452778 | E16: 0.9628556 | F16: 0.0628556
A17: Kurs zamknięcia Q3 2015 | B17: Closing exchange rate Q3 2015 | C17: 4.2386 | D17: 3.7754 | E17: 0.9619 | F17: 0.0576
A19: Kurs średni Q1-Q4 2015 | B19: Average exchange rate Q1-Q4 2015 | C19: 4.1847667 | D19: 3.7928167 | E19: 0.9757415 | F19: 0.061625
A20: Kurs zamknięcia Q4 2015 | B20: Closing exchange rate Q4 2015 | C20: 4.2615 | D20: 3.9011 | E20: 0.9997693 | F20: 0.0528
A22: Kurs średni Q1 2016 | B22: Average exchange rate Q1 2016 | C22: 4.3559333 | D22: 3.9416 | E22: =1.0167 -> 1.0167 | F22: 0.0539333
A23: Kurs zamknięcia Q1 2016 | B23: Closing exchange rate Q1 2016 | C23: 4.2684 | D23: 3.759 | E23: 0.9981 | F23: 0.0555
A25: Kurs średni Q1-Q2 2016 | B25: Average exchange rate Q1-Q2 2016 | C25: 4.3805167 | D25: 3.9359667 | E25: 1.0229468 | F25: 0.05725
A26: Kurs zamknięcia Q2 2016 | B26: Closing exchange rate Q2 2016 | C26: 4.4255 | D26: 3.9803 | E26: 1.0349194 | F26: 0.062
A28: Kurs średni Q1-Q3 2016 | B28: Average exchange rate Q1-Q3 2016 | C28: 4.3687778 | D28: 3.9240222 | E28: 1.0249222 | F28: 0.0581111
A29: Kurs zamknięcia Q3 2016 | B29: Closing exchange rate Q3 2016 | C29: 4.312 | D29: 3.8558 | E29: 1.0260245 | F29: 0.0609
A31: Kurs średni Q1-Q4 2016 | B31: Average exchange rate Q1-Q4 2016 | C31: 4.375675 | D31: 3.9680333 | E31: 1.0353283 | F31: 0.0598167
A32: Kurs zamknięcia Q4 2016 | B32: Closing exchange rate Q4 2016 | C32: 4.424 | D32: 4.1793 | E32: 1.0869441 | F32: 0.068
A34: Kurs średni Q1 2017 | B34: Average exchange rate Q1 2017 | C34: 4.2890667 | D34: 4.0223667 | E34: 1.0912259 | F34: 0.0693667
A35: Kurs zamknięcia Q1 2017 | B35: Closing exchange rate Q1 2017 | C35: 4.2198 | D35: 3.9455 | E35: 1.0863161 | F35: 0.0704
A37: Kurs średni Q1-Q2 2017 | B37: Average exchange rate Q1-Q2 2017 | C37: 4.2474 | D37: 3.8963833 | E37: 1.0753374 | F37: 0.0673833
A38: Kurs zamknięcia Q2 2017 | B38: Closing exchange rate Q2 2017 | C38: 4.2265 | D38: 3.7062 | E38: 1.0601259 | F38: 0.0624
A40: Kurs średni Q1-Q3 2017 | B40: Average exchange rate Q1-Q3 2017 | C40: 4.2566444 | D40: 3.8043111 | E40: 1.0558041 | F40: 0.0654556
A41: Kurs zamknięcia Q3 2017 | B41: Closing exchange rate Q3 2017 | C41: 4.3091 | D41: 3.6519 | E41: 1.0348257 | F41: 0.0631
A43: Kurs średni Q1-Q4 2017 | B43: Average exchange rate Q1-Q4 2017 | C43: 4.2446 | D43: 3.7439 | E43: 1.0466 | F43: 0.0644
A44: Kurs zamknięcia Q4 2017 | B44: Closing exchange rate Q4 2017 | C44: 4.1709 | D44: 3.4813 | E44: 1.0041 | F44: 0.0604
A46: Kurs średni Q1 2018 | B46: Average exchange rate Q1 2018 | C46: 4.1784 | D46: 3.3881 | E46: 0.977 | F46: 0.0598
A47: Kurs zamknięcia Q1 2018 | B47: Closing exchange rate Q1 2018 | C47: 4.2085 | D47: 3.4139 | E47: 0.9715 | F47: 0.0594
A49: Kurs średni Q1-Q2 2018 | B49: Average exchange rate Q2 2018 | C49: 4.23945 | D49: 3.5192167 | E49: 0.9952924 | F49: 0.05905
A50: Kurs zamknięcia Q2 2018 | B50: Closing exchange rate Q2 2018 | C50: 4.3616 | D50: 3.744 | E50: 1.0257534 | F50: 0.0597
A52: Kurs średni Q1-Q3 2018 | B52: Average exchange rate Q3 2018 | C52: 4.2534778 | D52: 3.5688444 | E52: 1.0002299 | F52: 0.0581111
A53: Kurs zamknięcia Q3 2018 | B53: Closing exchange rate Q3 2018 | C53: 4.2714 | D53: 3.6754 | E53: 1.0133444 | F53: 0.0561
A55: Kurs średni Q1-Q4 2018 | B55: Average exchange rate Q4 2018 | C55: 4.2669167 | D55: 3.622725 | E55: 1.0042799 | F55: 0.0576417
A56: Kurs zamknięcia Q4 2018 | B56: Closing exchange rate Q4 2018 | C56: 4.3 | D56: 3.7597 | E56: 1.0031217 | F56: 0.0541
A58: Kurs średni Q1 2019 | B58: Average exchange rate Q1 2019 | C58: 4.2978333 | D58: 3.7829667 | E58: 1.0433255 | F58: 0.058
A59: Kurs zamknięcia Q1 2019 | B59: Closing exchange rate Q1 2019 | C59: 4.3013 | D59: 3.8365 | E59: 1.0563051 | F59: 0.0593
A61: Kurs średni Q1-Q2 2019 | B61: Average exchange rate Q2 2019 | C61: 4.2880333 | D61: 3.7935667 | E61: 1.0496067 | F61: 0.0585333
A62: Kurs zamknięcia Q2 2019 | B62: Closing exchange rate Q2 2019 | C62: 4.252 | D62: 3.7336 | E62: 1.0469994 | F62: 0.0592
A64: Kurs średni Q1-Q3 2019 | B64: Average exchange rate Q3 2019 | C64: 4.3085889 | D64: 3.8426111 | E64: 1.0744856 | F64: 0.0592667
A65: Kurs zamknięcia Q3 2019 | B65: Closing exchange rate Q3 2019 | C65: 4.3736 | D65: 4 | E65: 1.1487651 | F65: 0.0618
A67: Kurs średni Q1-Q4 2019 | B67: Average exchange rate Q3 2019 | C67: 4.3018 | D67: 3.844 | E67: 1.0818 | F67: 0.0608
A68: Kurs zamknięcia Q4 2019 | B68: Closing exchange rate Q3 2019 | C68: 4.2585 | D68: 3.7977 | E68: 1.0989 | F68: 0.075
